NUMERO_MANDATO;RIGA_MANDATO;QUIET;IMPORTO_RIGA;IMPORTO_MANDATO;BENEFICIARIO;CIG;TITOLO_PAGAMENTO;DATA_MANDATO;CAPITOLO;ARTICOLO;NUMERO_IMPEGNO;TITOLO;DESCR_TITOLO;LIVELLO_II;DESCR_LIVELLO_II;LIVELLO_III;DESCR_LIVELLO_III;LIVELLO_IV;DESCR_LIVELLO_IV;LIVELLO_V;DESCR_LIVELLO_V;DATA_PAG_EFF;
1155;1;0;"186,00";"186,00";I.N.A.I.L. SEDE DI TREVISO; ;VERIFICA OBBLIGATORIA IMPIANTI DI RISCALDAMENTO EDIFICI PUBBLICI DA PARTE DELLINAIL DI TREVISO. IMPEGNO DI SPESA E LIQUIDAZIONE CORRISPETTIVO PER VERIFICA IN LOCO PRESSO LA CENTRALE TERMICA DELLO STADIO COMUNALE.;01-10-2021;888;0;191;2;Spese in conto capitale;2;Investimenti fissi lordi e acquisto di terreni;1;Beni materiali;9;Beni immobili;16;Impianti sportivi;01-10-2021;
1156;1;0;"186,00";"186,00";I.N.A.I.L. SEDE DI TREVISO; ;VERIFICA OBBLIGATORIA IMPIANTI DI RISCALDAMENTO EDIFICI PUBBLICI DA PARTE DELLINAIL DI TREVISO. IMPEGNO DI SPESA E LIQUIDAZIONE CORRISPETTIVO PER VERIFICA IN LOCO PRESSO LA CENTRALE TERMICA DI VILLA RUBELLI.;01-10-2021;745;0;195;2;Spese in conto capitale;2;Investimenti fissi lordi e acquisto di terreni;1;Beni materiali;9;Beni immobili;999;Beni immobili n.a.c.;01-10-2021;
1162;1;0;"710,81";"710,81";SERVIZI TREVISO SRL;ZA930BE066;Fatt.n. 2021/39/149 del 27/09/2021 ADEMPIMENTI FISCALI;04-10-2021;559;0;42;1;Spese correnti;3;Acquisto di beni e servizi;2;Acquisto di servizi;99;Altri servizi;999;Altri servizi diversi n.a.c.;04-10-2021;
1163;1;0;"17.080,00";"17.080,00";FELTRINLEGNO S.R.L.;ZD8305393F;Fatt.n. 01/01/0000073 del 22/09/2021 ARREDAMENTI PER EDIFICIO COMUNALE;04-10-2021;745;0;521;2;Spese in conto capitale;2;Investimenti fissi lordi e acquisto di terreni;1;Beni materiali;9;Beni immobili;999;Beni immobili n.a.c.;04-10-2021;
1164;1;0;"190,00";"190,00";MAXI DI SRL; ;Fatt.n. 2908008470 del 24/09/2021 ACQUISTO BENI PER EMERGENZA COVID;04-10-2021;563;0;463;1;Spese correnti;3;Acquisto di beni e servizi;1;Acquisto di beni;2;Altri beni di consumo;11;Generi alimentari;04-10-2021;
1165;1;0;"293,51";"293,51";F.LLI MICHIELIN S.N.C.;ZD4322CA5E;Fatt.n. 9/PA del 15/09/2021 MANUTENZIONE AUTO COMUNALI;04-10-2021;589;1;197;1;Spese correnti;3;Acquisto di beni e servizi;2;Acquisto di servizi;9;Manutenzione ordinaria e riparazioni;5;Manutenzione ordinaria e riparazioni di attrezzature;04-10-2021;
1166;1;0;"2.286,60";"2.286,60";LA ESSE COOPERATIVA SOCIALE;Z302F1C73A;Fatt.n. 244/01 del 14/09/2021 GESTIONE PROGETTO POLITICHE ATTIVE PER IL LAVORO;04-10-2021;568;0;368;1;Spese correnti;3;Acquisto di beni e servizi;2;Acquisto di servizi;99;Altri servizi;999;Altri servizi diversi n.a.c.;04-10-2021;
1167;1;0;"119,96";"119,96";CISL VENETO SERVIZI S.R.L.;ZA930BE066;Fatt.n. TVP/183 del 17/09/2021 GESTIONE PRATICHE SOCIALI;04-10-2021;559;0;42;1;Spese correnti;3;Acquisto di beni e servizi;2;Acquisto di servizi;99;Altri servizi;999;Altri servizi diversi n.a.c.;04-10-2021;
1168;1;0;"3.112,60";"3.112,60";CASA DI RIPOSO 'AITA'; ;Fatt.n. 426/B del 14/09/2021 PRESTAZIONI DI A.D. - AGOSTO 2021;04-10-2021;562;1;33;1;Spese correnti;3;Acquisto di beni e servizi;2;Acquisto di servizi;15;Contratti di servizio pubblico;9;Contratti di servizio di assistenza sociale domiciliare;04-10-2021;
1169;1;0;"11.950,00";"11.950,00";SOCIETA' MONDO DELFINO  COOP. SOC.;Z8831B72EA;Fatt.n. 68/PA del 08/09/2021 GESTIONE CENTRO ESTIVO 2021;04-10-2021;295;2;145;1;Spese correnti;3;Acquisto di beni e servizi;2;Acquisto di servizi;15;Contratti di servizio pubblico;999;Altre spese per contratti di servizio pubblico;04-10-2021;
1170;1;0;"220,00";"220,00";BERTON ALESSANDRA;ZB8328CB0F;Fatt.n. 0000001/FE del 02/09/2021 PROGETTO CON-TATTO;04-10-2021;559;0;247;1;Spese correnti;3;Acquisto di beni e servizi;2;Acquisto di servizi;99;Altri servizi;999;Altri servizi diversi n.a.c.;04-10-2021;
1171;1;0;"1,80";"1,80";OMESSO NOMINATIVO NEL RISPETTO DELLA NORMATIVA SULLA PROTEZIONE DATI PERSONALI; ;SPESA COMMISSIONE BOLLETTINO POSTALE FT. N. 415/B DEL 13.09.2021 CASA DI RIPOSO AITA;04-10-2021;576;0;34;1;Spese correnti;4;Trasferimenti correnti;2;Trasferimenti correnti a Famiglie;2;Interventi assistenziali;999;Altri assegni e sussidi assistenziali;04-10-2021;
1172;1;0;"68,51";"68,51";OMESSO NOMINATIVO NEL RISPETTO DELLA NORMATIVA SULLA PROTEZIONE DATI PERSONALI; ;LIQUIDAZIONE UTENTE G.C. PASTI AGOSTO 2021 FT. N. 415/B DEL 13.09.2021 "CASA DI RIPOSO AITA";04-10-2021;576;0;34;1;Spese correnti;4;Trasferimenti correnti;2;Trasferimenti correnti a Famiglie;2;Interventi assistenziali;999;Altri assegni e sussidi assistenziali;04-10-2021;
1173;1;0;"1,80";"1,80";OMESSO NOMINATIVO NEL RISPETTO DELLA NORMATIVA SULLA PROTEZIONE DATI PERSONALI; ;SPESA COMMISSIONE BOLLETTINO POSTALE SU FT. N. 417/B DEL 13.09.2021 CASA DI RIPOSO AITA;04-10-2021;576;0;108;1;Spese correnti;4;Trasferimenti correnti;2;Trasferimenti correnti a Famiglie;2;Interventi assistenziali;999;Altri assegni e sussidi assistenziali;04-10-2021;
1174;1;0;"318,20";"318,20";OMESSO NOMINATIVO NEL RISPETTO DELLA NORMATIVA SULLA PROTEZIONE DATI PERSONALI; ;LIQUIDAZIONE UTENTE F.R. PASTI AGOSTO 2021 FT. N. 417/B DEL 13.09.2021 "CASA DI RIPOSO AITA";04-10-2021;576;0;108;1;Spese correnti;4;Trasferimenti correnti;2;Trasferimenti correnti a Famiglie;2;Interventi assistenziali;999;Altri assegni e sussidi assistenziali;04-10-2021;
1175;1;0;"1.500,00";"1.500,00";ASSOCIAZIONE NAZIONALE CARABINIERI; ;CONTRIBUTO ASSOCIAZIONE NAZIONALE CARABINIERI IN CONGEDO  - GRUPPO DI VOLONTARIATO DI FONTE E SAN ZENONE PER SVOGLIMENTO ATTIVITA A SUPPORTO POLIZIA LOCALE - ANNO 2021.;04-10-2021;181;0;312;1;Spese correnti;4;Trasferimenti correnti;4;Trasferimenti correnti a Istituzioni Sociali Private;1;Trasferimenti correnti a Istituzioni Sociali Private;1;Trasferimenti correnti a Istituzioni Sociali Private;04-10-2021;
1177;1;0;"375,00";"375,00";TREVIGIANFIDI Soc. Cooperativa; ;LIQUIDAZIONE DI CUI AL PROGETTO FUND DELLA PEDEMONTANA DEL GRAPPA E DELLASOLANO  VOLTO A FAVORIRE ACCESSO AL CREDITO A TASSI AGEVOLATI E TEMPI CERTI AL FINE DI FAR FRONTE A QUESTO PERIODO DA COVID 19.;06-10-2021;631;0;243;1;Spese correnti;4;Trasferimenti correnti;4;Trasferimenti correnti a Istituzioni Sociali Private;1;Trasferimenti correnti a Istituzioni Sociali Private;1;Trasferimenti correnti a Istituzioni Sociali Private;06-10-2021;
1178;1;0;"1.125,00";"1.125,00";CANOVA Coop. Artig. di Garanzia Marca Trevigiana Scarl; ;LIQUIDAZIONE DI CUI AL PROGETTO FUND DELLA PEDEMONTANA DEL GRAPPA E ASOLANO  VOLTO A FAVORIRE ACCESSO AL CREDITO A TASSI AGEVOLATI E TEMPI CERTI AL FINE DI FAR FRONTE A QUESTO PERIODO DA COVID 19.;06-10-2021;631;0;244;1;Spese correnti;4;Trasferimenti correnti;4;Trasferimenti correnti a Istituzioni Sociali Private;1;Trasferimenti correnti a Istituzioni Sociali Private;1;Trasferimenti correnti a Istituzioni Sociali Private;06-10-2021;
1179;1;0;"6.000,00";"6.000,00";CONSORZIO VENETO GARANZIE soc. cooperativa; ;LIQUIDAZIONE DI CUI AL PROGETTO FUND DELLA PEDEMONTANA DEL GRAPPA E ASOLANO  VOLTO A FAVORIRE ACCESSO AL CREDITO A TASSI AGEVOLATI E TEMPI CERTI AL FINE DI FAR FRONTE A QUESTO PERIODO DA COVID 19.;06-10-2021;631;0;245;1;Spese correnti;4;Trasferimenti correnti;4;Trasferimenti correnti a Istituzioni Sociali Private;1;Trasferimenti correnti a Istituzioni Sociali Private;1;Trasferimenti correnti a Istituzioni Sociali Private;06-10-2021;
1180;1;0;"7.500,00";"7.500,00";FIDI IMPRESA & TURISMO VENETO S.c.p.a.; ;LIQUIDAZIONE DI CUI AL PROGETTO FUND DELLA PEDEMONTANA DEL GRAPPA E ASOLANO  VOLTO A FAVORIRE ACCESSO AL CREDITO A TASSI AGEVOLATI E TEMPI CERTI AL FINE DI FAR FRONTE A QUESTO PERIODO DA COVID 19.;06-10-2021;631;0;246;1;Spese correnti;4;Trasferimenti correnti;4;Trasferimenti correnti a Istituzioni Sociali Private;1;Trasferimenti correnti a Istituzioni Sociali Private;1;Trasferimenti correnti a Istituzioni Sociali Private;06-10-2021;
1181;1;0;"1,30";"5,20";NOMINATIVI DIVERSI DA PAGO PA; ;SOGGETTI DIVERSI-COMMISSIONI INCASSO C-BILL SPORTELLO 5 COMMISSIONI INCASSO C-BILL SPORTELLO (P. 63 -R. 1284 del 01/10/2021);07-10-2021;55;0;0;1;Spese correnti;3;Acquisto di beni e servizi;2;Acquisto di servizi;17;Servizi finanziari;1;Commissioni per servizi finanziari;07-10-2021;
1181;2;0;"1,30";"5,20";NOMINATIVI DIVERSI DA PAGO PA; ;SOGGETTI DIVERSI-COMMISSIONI INCASSO C-BILL SPORTELLO 5 COMMISSIONI INCASSO C-BILL SPORTELLO (P. 62 -R. 1283 del 01/10/2021);07-10-2021;55;0;0;1;Spese correnti;3;Acquisto di beni e servizi;2;Acquisto di servizi;17;Servizi finanziari;1;Commissioni per servizi finanziari;07-10-2021;
1181;3;0;"1,30";"5,20";NOMINATIVI DIVERSI DA PAGO PA; ;SOGGETTI DIVERSI-COMMISSIONI INCASSO C-BILL SPORTELLO 5 COMMISSIONI INCASSO C-BILL SPORTELLO (P. 55 -R. 1159 del 08/09/2021);07-10-2021;55;0;0;1;Spese correnti;3;Acquisto di beni e servizi;2;Acquisto di servizi;17;Servizi finanziari;1;Commissioni per servizi finanziari;07-10-2021;
1181;4;0;"1,30";"5,20";NOMINATIVI DIVERSI DA PAGO PA; ;SOGGETTI DIVERSI-COMMISSIONI INCASSO C-BILL SPORTELLO 5 COMMISSIONI INCASSO C-BILL SPORTELLO (P. 54 -R. 1146 del 07/09/2021);07-10-2021;55;0;0;1;Spese correnti;3;Acquisto di beni e servizi;2;Acquisto di servizi;17;Servizi finanziari;1;Commissioni per servizi finanziari;07-10-2021;
1182;1;0;"87,95";"300,75";PLT PUREGREEN;7134285639;SALDO Fatt.n. 20210040002065  del 13/04/2021 FORNITURA ENERGIA ELETTRICA - MARZO 2021;08-10-2021;413;0;211;1;Spese correnti;3;Acquisto di beni e servizi;2;Acquisto di servizi;5;Utenze e canoni;4;Energia elettrica;08-10-2021;
1182;2;0;"50,50";"300,75";PLT PUREGREEN;7134285639;SALDO Fatt.n. 20210040002074  del 13/04/2021 FORNITURA ENERGIA ELETTRICA - MARZO 2021;08-10-2021;413;0;211;1;Spese correnti;3;Acquisto di beni e servizi;2;Acquisto di servizi;5;Utenze e canoni;4;Energia elettrica;08-10-2021;
1182;3;0;"65,88";"300,75";PLT PUREGREEN;7134285639;SALDO Fatt.n. 20210040002072  del 13/04/2021 FORNITURA ENERGIA ELETTRICA - MARZO 2021;08-10-2021;413;0;211;1;Spese correnti;3;Acquisto di beni e servizi;2;Acquisto di servizi;5;Utenze e canoni;4;Energia elettrica;08-10-2021;
1182;4;0;"96,42";"300,75";PLT PUREGREEN;7134285639;SALDO Fatt.n. 20210040002069  del 13/04/2021 FORNITURA ENERGIA ELETTRICA -MARZO 2021;08-10-2021;413;0;211;1;Spese correnti;3;Acquisto di beni e servizi;2;Acquisto di servizi;5;Utenze e canoni;4;Energia elettrica;08-10-2021;
1183;1;0;"158,60";"158,60";IMQ S.P.A.;Z7831CD37E;Fatt.n. 121027050 del 30/09/2021 Collaudo/Verifica impianti elevatori - settembre 2021;11-10-2021;252;1;155;1;Spese correnti;3;Acquisto di beni e servizi;2;Acquisto di servizi;9;Manutenzione ordinaria e riparazioni;4;Manutenzione ordinaria e riparazioni di impianti e macchinari;11-10-2021;
1184;1;0;"304,62";"304,62";BELLNET INTERNATIONAL S.R.L.;Z752BFBD5F;Fatt.n. FATTPA 2311_21 del 30/09/2021 TRAFFICO TELEFONICO - SETTEMBRE 2021;11-10-2021;34;0;58;1;Spese correnti;3;Acquisto di beni e servizi;2;Acquisto di servizi;5;Utenze e canoni;1;Telefonia fissa;11-10-2021;
1185;1;0;"33,15";"33,15";FARMACIE PIU' DI S.A.S. DT RI C. E N.; ;Fatt.n. 36/2021/PA del 01/10/2021 ACQUISTO PRODOTTI PER EMERGENZA COVID;11-10-2021;563;0;468;1;Spese correnti;3;Acquisto di beni e servizi;1;Acquisto di beni;2;Altri beni di consumo;11;Generi alimentari;11-10-2021;
1186;1;0;"224,40";"224,40";POSTE ITALIANE SPA - PROVENTI POLO LOGISTICO;Z03302BD5C;SALDO Fatt.n. 1021252920  del 30/09/2021 PRODOTTI POSTALI - SETTEMBRE 2021;11-10-2021;26;0;45;1;Spese correnti;3;Acquisto di beni e servizi;2;Acquisto di servizi;16;Servizi amministrativi;2;Spese postali;11-10-2021;
1187;1;0;"932,74";"932,74";OLIVETTI S.P.A.;ZC92648F71;Fatt.n. A20020211000039534 del 30/09/2021 CONTRATTO DI NOLEGGIO FOTOCOPIATORI;11-10-2021;34;0;508;1;Spese correnti;3;Acquisto di beni e servizi;2;Acquisto di servizi;5;Utenze e canoni;999;Utenze e canoni per altri servizi n.a.c.;11-10-2021;
1188;1;0;"772,26";"772,26";OLIVETTI S.P.A.;ZC92648F71;Fatt.n. A20020211000039534 del 30/09/2021 CONTRATTO DI NOLEGGIO FOTOCOPIATORI;11-10-2021;235;0;510;1;Spese correnti;3;Acquisto di beni e servizi;2;Acquisto di servizi;5;Utenze e canoni;999;Utenze e canoni per altri servizi n.a.c.;11-10-2021;
1189;1;0;"257,42";"257,42";OLIVETTI S.P.A.;ZC92648F71;Fatt.n. A20020211000039534 del 30/09/2021 CONTRATTO DI NOLEGGIO FOTOCOPIATORI;11-10-2021;252;0;509;1;Spese correnti;3;Acquisto di beni e servizi;2;Acquisto di servizi;5;Utenze e canoni;999;Utenze e canoni per altri servizi n.a.c.;11-10-2021;
1190;1;0;"153,03";"153,03";KUWAIT PETROLEUM ITALIA S.P.A.;Z5B2CB3D93;Fatt.n. PJ04472132 del 30/09/2021 FORNITURA CARBURANTE AUTO UFFICI COMUNALI;11-10-2021;47;0;108;1;Spese correnti;3;Acquisto di beni e servizi;1;Acquisto di beni;2;Altri beni di consumo;2;"Carburanti, combustibili e lubrificanti";11-10-2021;
1191;1;0;"66,01";"66,01";KUWAIT PETROLEUM ITALIA S.P.A.;Z5B2CB3D93;Fatt.n. PJ04472136 del 30/09/2021 FORNITURA CARBURANTE AUTO VIGILI - SETTEMBRE 2021;11-10-2021;179;0;109;1;Spese correnti;3;Acquisto di beni e servizi;1;Acquisto di beni;2;Altri beni di consumo;2;"Carburanti, combustibili e lubrificanti";11-10-2021;
1192;1;0;"166,99";"166,99";KUWAIT PETROLEUM ITALIA S.P.A.;Z5B2CB3D93;Fatt.n. PJ04472135 del 30/09/2021 CARBURANTE AUTO UFF. SOCIALE;11-10-2021;571;0;110;1;Spese correnti;3;Acquisto di beni e servizi;1;Acquisto di beni;2;Altri beni di consumo;2;"Carburanti, combustibili e lubrificanti";11-10-2021;
1193;1;0;"118,99";"118,99";KUWAIT PETROLEUM ITALIA S.P.A.;Z5B2CB3D93;Fatt.n. PJ04472134 del 30/09/2021 FORNITURA CARBURANTE AUTO OPERAI - SETTEMBRE 2021;11-10-2021;590;0;111;1;Spese correnti;3;Acquisto di beni e servizi;1;Acquisto di beni;2;Altri beni di consumo;2;"Carburanti, combustibili e lubrificanti";11-10-2021;
1194;1;0;"28,06";"28,06";SICURITALIA IVRI S.P.A.;Z3827208DE;Fatt.n. 9117012609 del 30/09/2021 SERVIZI ISPETTIVI ED. COMUNALI - SETTEMBRE 2021;11-10-2021;235;0;92;1;Spese correnti;3;Acquisto di beni e servizi;2;Acquisto di servizi;5;Utenze e canoni;999;Utenze e canoni per altri servizi n.a.c.;11-10-2021;
1195;1;0;"88,64";"88,64";FARMACIE PIU' DI S.A.S. DT RI C. E N.; ;Fatt.n. 37/2021/PA del 01/10/2021 ACQUISTO PRODOTTI PER EMERGENZA COVID;11-10-2021;563;0;468;1;Spese correnti;3;Acquisto di beni e servizi;1;Acquisto di beni;2;Altri beni di consumo;11;Generi alimentari;11-10-2021;
1196;1;0;"2.440,00";"2.440,00";IDEA GIARDINO SNC;Z61324152A;Fatt.n. 66 del 21/09/2021 SFALCIO VERDE SU AREE PUBBLICHE;11-10-2021;512;0;215;1;Spese correnti;3;Acquisto di beni e servizi;2;Acquisto di servizi;99;Altri servizi;9;Acquisto di sevizi per verde e arredo urbano;11-10-2021;
1197;1;0;"1.098,00";"3.294,00";NOIGROUP Coop. Soc. a R.L.;ZE231CE44C;Fatt.n. 616 del 31/08/2021 SERVIZI DI SUPPORTO PER UFFICIO TECNICO;13-10-2021;68;0;162;1;Spese correnti;3;Acquisto di beni e servizi;2;Acquisto di servizi;16;Servizi amministrativi;999;Altre spese per servizi amministrativi;13-10-2021;
1197;2;0;"1.098,00";"3.294,00";NOIGROUP Coop. Soc. a R.L.;ZE231CE44C;Fatt.n. 544 del 31/07/2021 SERVIZI DI SUPPORTO AI SERVIZI AMMINISTRATIVI;13-10-2021;68;0;162;1;Spese correnti;3;Acquisto di beni e servizi;2;Acquisto di servizi;16;Servizi amministrativi;999;Altre spese per servizi amministrativi;13-10-2021;
1197;3;0;"1.098,00";"3.294,00";NOIGROUP Coop. Soc. a R.L.;ZE231CE44C;Fatt.n. 464 del 30/06/2021 PRESTAZIONI COMUNALI C/O UFF. TECNICO;13-10-2021;68;0;162;1;Spese correnti;3;Acquisto di beni e servizi;2;Acquisto di servizi;16;Servizi amministrativi;999;Altre spese per servizi amministrativi;13-10-2021;
1198;1;0;"222,86";"222,86";CENTRO PER LA SALUTE DEL BAMBINO - CSB ONLUS;Z27330FE61;Fatt.n. FATTPA 71_21 del 29/09/2021 IMPEGNO DI SPESA PER LIBRI DA LEGGERE;13-10-2021;304;0;310;1;Spese correnti;3;Acquisto di beni e servizi;1;Acquisto di beni;1;"Giornali, riviste e pubblicazioni";2;Pubblicazioni;13-10-2021;
1199;1;0;"40,00";"40,00";MAXI DI SRL; ;Fatt.n. 2908008662 del 29/09/2021 BUONI COVID - AGOSTO 2021;13-10-2021;563;0;463;1;Spese correnti;3;Acquisto di beni e servizi;1;Acquisto di beni;2;Altri beni di consumo;11;Generi alimentari;13-10-2021;
1236;1;0;"5.961,21";"5.961,21";AMMINISTRATORI COMUNALI; ;STIPENDI MESE DI: OTTOBRE 21;13-10-2021;2;0;1;1;Spese correnti;3;Acquisto di beni e servizi;2;Acquisto di servizi;1;Organi e incarichi istituzionali dell'amministrazione;1;Organi istituzionali dell'amministrazione - Indennità;13-10-2021;
1239;1;0;"810,00";"810,00";CENTRO STUDI AMMINISTRATIVI DELLA M.T.; ;Fatt.n. 626/2021 del 24/09/2021 PROGETTO UNICO PER L'IMPRESA;13-10-2021;51;1;12;1;Spese correnti;3;Acquisto di beni e servizi;2;Acquisto di servizi;99;Altri servizi;3;Quote di associazioni;13-10-2021;
1240;1;0;"848,14";"848,14";UNICOOPER SERVIZI S.C.R.L.;ZA530DF999;Fatt.n. 1783 del 30/09/2021 SERVIZIO PULIZIE CENTRO "LA ROGGIA" - SETTEMBRE 2021;15-10-2021;561;3;62;1;Spese correnti;3;Acquisto di beni e servizi;2;Acquisto di servizi;13;Servizi ausiliari per il funzionamento dell'ente;2;Servizi di pulizia e lavanderia;15-10-2021;
1241;1;0;"1.781,82";"1.781,82";UNICOOPER SERVIZI S.C.R.L.;ZA530DF999;Fatt.n. 1782 del 30/09/2021 PULIZIA EDIFICI PUBBLICI - SETTEMBRE 2021;15-10-2021;34;2;61;1;Spese correnti;3;Acquisto di beni e servizi;2;Acquisto di servizi;13;Servizi ausiliari per il funzionamento dell'ente;2;Servizi di pulizia e lavanderia;15-10-2021;
1242;1;0;"62,68";"62,68";FERRONATO S.R.L.;Z7C26AD935;Fatt.n. P6 del 30/09/2021 FORNITURA FERRAMENTA;15-10-2021;531;0;279;1;Spese correnti;3;Acquisto di beni e servizi;1;Acquisto di beni;2;Altri beni di consumo;999;Altri beni e materiali di consumo n.a.c.;15-10-2021;
1243;1;0;"1.174,14";"1.174,14";A.S. DI ANDREATTA GIUSEPPE & C. S.R.L.;Z6C326345E;Fatt.n. 745 del 30/09/2021 MANUTENZIONE PUBBLICA ILLUMINAZIONE;15-10-2021;601;0;221;1;Spese correnti;3;Acquisto di beni e servizi;2;Acquisto di servizi;15;Contratti di servizio pubblico;15;Contratti di servizio per l'illuminazione pubblica;15-10-2021;
1244;1;0;"1.598,97";"1.598,97";A.S. DI ANDREATTA GIUSEPPE & C. S.R.L.;Z04300D84C;Fatt.n. 742 del 30/09/2021 MANUTENZIONE IMPIANTI ELETTRICI;15-10-2021;745;0;323;2;Spese in conto capitale;2;Investimenti fissi lordi e acquisto di terreni;1;Beni materiali;9;Beni immobili;999;Beni immobili n.a.c.;15-10-2021;
1245;1;0;"17.725,46";"17.725,46";A.S. DI ANDREATTA GIUSEPPE & C. S.R.L.;84372406B4;Fatt.n. 737 del 30/09/2021 EFFICIENTAMENTO ENERGETICO ILLUM. PUBBLICA - II STRALCIO;15-10-2021;1004;0;322;2;Spese in conto capitale;2;Investimenti fissi lordi e acquisto di terreni;1;Beni materiali;9;Beni immobili;12;Infrastrutture stradali;15-10-2021;
1246;1;0;"304,34";"304,34";KUWAIT PETROLEUM ITALIA S.P.A.;Z5B2CB3D93;Fatt.n. PJ04352367 del 31/08/2021 CARBURANTE AUTO PROT. CIVILE - AGOSTO 2021;15-10-2021;590;0;111;1;Spese correnti;3;Acquisto di beni e servizi;1;Acquisto di beni;2;Altri beni di consumo;2;"Carburanti, combustibili e lubrificanti";15-10-2021;
1247;1;0;"2.000,00";"2.000,00";CORO MONTE GRAPPA; ;LIQUIDAZIONE CONTRIBUTO ECONOMICO ORDINARIO 2021;20-10-2021;335;0;329;1;Spese correnti;4;Trasferimenti correnti;1;Trasferimenti correnti a Amministrazioni Pubbliche;4;Trasferimenti correnti a organismi interni e/o unità locali della amministrazione;1;Trasferimenti correnti a organismi interni e/o unità locali della amministrazione;20-10-2021;
1248;1;0;"2.000,00";"2.000,00";BANDA ALPINA GIRASOLE PEDEMONTANA DEL GRAPPA; ;LIQUIDAZIONE CONTRIBUTO ECONOMICO ORDINARIO 2021;20-10-2021;335;0;330;1;Spese correnti;4;Trasferimenti correnti;1;Trasferimenti correnti a Amministrazioni Pubbliche;4;Trasferimenti correnti a organismi interni e/o unità locali della amministrazione;1;Trasferimenti correnti a organismi interni e/o unità locali della amministrazione;20-10-2021;
1249;1;0;"17.508,57";"17.508,57";AZIENDA U.L.S.S. N.2  MARCA TREVIGIANA; ;TUTELA SOCIALE MINORILE. ONERI PER LE FUNZIONI DELEGATE - IMPEGNO DI SPESA PER LANNO 2021. LIQUIDAZIONE PRIMO E SECONDO QUADRIMESTRE A FAVORE DELLAZIENDA ULSS2 MARCA TREVIGIANA (EX ULSS8).;20-10-2021;580;0;328;1;Spese correnti;4;Trasferimenti correnti;1;Trasferimenti correnti a Amministrazioni Pubbliche;2;Trasferimenti correnti a Amministrazioni Locali;20;Trasferimenti correnti a Aziende sanitarie locali  a titolo di finanziamento del servizio sanitario nazionale;20-10-2021;
1250;1;0;"179,00";"179,00";BALTAGA ANTON;ZD2336418D;Fatt.n. 244 del 07/10/2021 ACQUISTO DI UN SMARTPHONE PER UFF. COMUNALI;21-10-2021;746;0;336;2;Spese in conto capitale;2;Investimenti fissi lordi e acquisto di terreni;1;Beni materiali;7;Hardware;4;Apparati di telecomunicazione;21-10-2021;
1251;1;0;"3.926,30";"3.926,30";CASA DI RIPOSO 'AITA'; ;Fatt.n. 533/B del 13/10/2021 SERVIZIO DI A.D. - SETTEMBRE 2021;21-10-2021;562;1;240;1;Spese correnti;3;Acquisto di beni e servizi;2;Acquisto di servizi;15;Contratti di servizio pubblico;9;Contratti di servizio di assistenza sociale domiciliare;21-10-2021;
1252;1;0;"1.497,76";"1.497,76";NOIGROUP Coop. Soc. a R.L.;8551409DEF;Fatt.n. 773 del 30/09/2021 GESTIONE BIBLIOTECA - SETTEMBRE 2021;21-10-2021;302;1;28;1;Spese correnti;3;Acquisto di beni e servizi;2;Acquisto di servizi;16;Servizi amministrativi;999;Altre spese per servizi amministrativi;21-10-2021;
1253;1;0;"1.632,00";"1.632,00";CASA DI RIPOSO 'AITA'; ;Fatt.n. 490/B del 06/10/2021 PRESTAZIONI SOCIALI L.V. - SETTEMBRE 2021;21-10-2021;560;0;43;1;Spese correnti;3;Acquisto di beni e servizi;2;Acquisto di servizi;15;Contratti di servizio pubblico;8;Contratti di servizio di assistenza sociale residenziale e semiresidenziale;21-10-2021;
1254;1;0;"587,00";"587,00";CASA DI SOGGIORNO 'PREALPINA' S.R.L.; ;Fatt.n. 142/04 del 30/09/2021 PRESTAZIONI SOCIALI - SETTEMBRE 2021;21-10-2021;560;0;137;1;Spese correnti;3;Acquisto di beni e servizi;2;Acquisto di servizi;15;Contratti di servizio pubblico;8;Contratti di servizio di assistenza sociale residenziale e semiresidenziale;21-10-2021;
1255;1;0;"49,00";"49,00";LA FONTESE DI GIANNI BROLESE & C. S.A.S.;Z10333EE15;Fatt.n. 166/F del 30/09/2021 FORNITURA CANCELLERIA;21-10-2021;37;0;326;1;Spese correnti;3;Acquisto di beni e servizi;1;Acquisto di beni;2;Altri beni di consumo;1;"Carta, cancelleria e stampati";21-10-2021;
1256;1;0;"89,06";"89,06";DIGITALBLU S.N.C. DI TASCA LUIGI;Z1033294F5;Fatt.n. FDL00000244 del 15/09/2021 CANONE SERVIZI CLOUD;21-10-2021;39;1;320;1;Spese correnti;3;Acquisto di beni e servizi;2;Acquisto di servizi;7;Utilizzo di beni di terzi;6;Licenze d'uso per software;21-10-2021;
1257;1;0;"6.073,16";"6.073,16";STUDIO 4M LUX S.R.L.S.;Z8332C41D3;Fatt.n. 151 del 13/09/2021 SISTEMAZIONE E ADEGUAMENTO IMPIANTO ILLUMINAZIONE PUBBLICA;21-10-2021;868;0;283;2;Spese in conto capitale;2;Investimenti fissi lordi e acquisto di terreni;1;Beni materiali;10;"Beni immobili di valore culturale, storico ed artistico";1;"Fabbricati ad uso abitativo di valore culturale, storico ed artistico";21-10-2021;
1258;1;0;"68,51";"68,51";OMESSO NOMINATIVO NEL RISPETTO DELLA NORMATIVA SULLA PROTEZIONE DATI PERSONALI; ;LIQUIDAZIONE UTENTE C. G. PASTI SETTEMBRE 2021 FT. N. 513/B DELL'11.10.2021 CASA DI RIPOSO "AITA";21-10-2021;576;0;34;1;Spese correnti;4;Trasferimenti correnti;2;Trasferimenti correnti a Famiglie;2;Interventi assistenziali;999;Altri assegni e sussidi assistenziali;21-10-2021;
1259;1;0;"1,80";"1,80";OMESSO NOMINATIVO NEL RISPETTO DELLA NORMATIVA SULLA PROTEZIONE DATI PERSONALI; ;SPESA COMMISSIONE BOLLETTINO POSTALE SU FT. N. 513/B DELL11.10.2021 CASA DI RIPOSO AITA;21-10-2021;576;0;34;1;Spese correnti;4;Trasferimenti correnti;2;Trasferimenti correnti a Famiglie;2;Interventi assistenziali;999;Altri assegni e sussidi assistenziali;21-10-2021;
1260;1;0;"318,20";"318,20";OMESSO NOMINATIVO NEL RISPETTO DELLA NORMATIVA SULLA PROTEZIONE DATI PERSONALI; ;LIQUIDAZIONE UTENTE F.R. PASTI SETTEMBRE 2021 FT. N. 515/B DELL'11.10.2021 CASA DI RIPOSO "AITA";21-10-2021;576;0;108;1;Spese correnti;4;Trasferimenti correnti;2;Trasferimenti correnti a Famiglie;2;Interventi assistenziali;999;Altri assegni e sussidi assistenziali;21-10-2021;
1261;1;0;"1,80";"1,80";OMESSO NOMINATIVO NEL RISPETTO DELLA NORMATIVA SULLA PROTEZIONE DATI PERSONALI; ;SPESA COMMISSIONE BOLLETTINO POSTALE SU FT. N. 515/B DELL11.10.2021 CASA DI RIPOSO AITA;21-10-2021;576;0;108;1;Spese correnti;4;Trasferimenti correnti;2;Trasferimenti correnti a Famiglie;2;Interventi assistenziali;999;Altri assegni e sussidi assistenziali;21-10-2021;
1262;1;0;"96,38";"96,38";TIM S.P.A.;ZE429271DF;Fatt.n. 4220421800035437 del 11/10/2021 TRAFFICO TELEFONICO 6 BIM 2021;21-10-2021;34;0;392;1;Spese correnti;3;Acquisto di beni e servizi;2;Acquisto di servizi;5;Utenze e canoni;999;Utenze e canoni per altri servizi n.a.c.;21-10-2021;
1263;1;0;"199,44";"199,44";TIM S.P.A.;6930022311;Fatt.n. 7X03464437 del 11/10/2021 TRAFFICO TELEFONICO 6 BIM 2021;21-10-2021;34;0;398;1;Spese correnti;3;Acquisto di beni e servizi;2;Acquisto di servizi;5;Utenze e canoni;999;Utenze e canoni per altri servizi n.a.c.;21-10-2021;
1264;1;0;"156,92";"156,92";TIM S.P.A.;Z7F2E68750;Fatt.n. 4220421800035406 del 11/10/2021 TRAFFICO TELEFONICO 6 BIM 2021;21-10-2021;235;0;307;1;Spese correnti;3;Acquisto di beni e servizi;2;Acquisto di servizi;5;Utenze e canoni;999;Utenze e canoni per altri servizi n.a.c.;21-10-2021;
1265;1;0;"122,00";"122,00";TIM S.P.A.;ZE429271DF;Fatt.n. 4220421800035437 del 11/10/2021 TRAFFICO TELEFONICO 6 BIM 2021;21-10-2021;235;0;394;1;Spese correnti;3;Acquisto di beni e servizi;2;Acquisto di servizi;5;Utenze e canoni;999;Utenze e canoni per altri servizi n.a.c.;21-10-2021;
1266;1;0;"122,00";"122,00";TIM S.P.A.;ZE429271DF;Fatt.n. 4220421800035437 del 11/10/2021 TRAFFICO TELEFONICO 6 BIM 2021;21-10-2021;252;0;393;1;Spese correnti;3;Acquisto di beni e servizi;2;Acquisto di servizi;5;Utenze e canoni;999;Utenze e canoni per altri servizi n.a.c.;21-10-2021;
1267;1;0;"151,28";"151,28";TIM S.P.A.;ZE429271DF;Fatt.n. 4220421800035437 del 11/10/2021 TRAFFICO TELEFONICO 6 BIM 2021;21-10-2021;310;0;395;1;Spese correnti;3;Acquisto di beni e servizi;2;Acquisto di servizi;5;Utenze e canoni;999;Utenze e canoni per altri servizi n.a.c.;21-10-2021;
1268;1;0;"122,00";"122,00";TIM S.P.A.;ZE429271DF;Fatt.n. 4220421800035437 del 11/10/2021 TRAFFICO TELEFONICO 6 BIM 2021;21-10-2021;311;0;396;1;Spese correnti;3;Acquisto di beni e servizi;2;Acquisto di servizi;5;Utenze e canoni;999;Utenze e canoni per altri servizi n.a.c.;21-10-2021;
1269;1;0;"1.220,25";"1.220,25";MINISTERO INFRASTR.-TESORER. PROV.LE DELLO STATO - ROMA;ZE4331CE32;RINNOVO CANONE ANNUALE DI COLLEGAMENTO TELEMATICO ALLA MOTORIZZAZIONE CIVILE UFFICO POLIZIA LOCALE - anno 2021.;25-10-2021;178;3;316;1;Spese correnti;3;Acquisto di beni e servizi;2;Acquisto di servizi;5;Utenze e canoni;999;Utenze e canoni per altri servizi n.a.c.;25-10-2021;
1270;1;0;"82,50";"82,50";TESTA ELISA;Z1F3339400;LIQUIDAZIONE COMPENSO A ELISA TESTA PER ORGANIZZAZIONE LABORATORIO CULTURALE RIVOLTO AI BAMBINI NEL PARCO DI VIA CANOVA.;25-10-2021;305;1;317;1;Spese correnti;3;Acquisto di beni e servizi;2;Acquisto di servizi;2;"Organizzazione eventi, pubblicita` e servizi per trasferta";5;Organizzazione e partecipazione a manifestazioni e convegni;25-10-2021;
1271;1;0;"169,30";"169,30";TEDESCO MARIA PIA; ;RIMBORSO SPESE DI ANIMAZIONE DEL SOGGIORNO CLIMATICO ANZIANI  A JESOLO 2021.;25-10-2021;578;1;331;1;Spese correnti;3;Acquisto di beni e servizi;2;Acquisto di servizi;99;Altri servizi;999;Altri servizi diversi n.a.c.;25-10-2021;
1272;1;0;"219,04";"219,04";COMUNE DI CONEGLIANO; ;LIQUIDAZIONE SPESA PER COMPARTECIPAZIONE SPESE LEGALI RICORSO AL T.A.R. LAZIO 2019 EX ARTT. 31 E 117 C.P.A.;26-10-2021;44;0;355;1;Spese correnti;4;Trasferimenti correnti;1;Trasferimenti correnti a Amministrazioni Pubbliche;2;Trasferimenti correnti a Amministrazioni Locali;3;Trasferimenti correnti a Comuni;26-10-2021;
1273;1;0;"90,64";"90,64";ALTO TREVIGIANO SERVIZI S.R.L.;Z2C320E4DB;Fatt.n. 62202100007620 del 15/10/2021 SERVIZIO IDRICO MARZO OTTOBRE 2021;26-10-2021;34;0;172;1;Spese correnti;3;Acquisto di beni e servizi;2;Acquisto di servizi;5;Utenze e canoni;5;Acqua;26-10-2021;
1274;1;0;"116,72";"116,72";ALTO TREVIGIANO SERVIZI S.R.L.;Z2C320E4DB;Fatt.n. 62202100007620 del 15/10/2021 SERVIZIO IDRICO MARZO OTTOBRE 2021;26-10-2021;310;0;175;1;Spese correnti;3;Acquisto di beni e servizi;2;Acquisto di servizi;5;Utenze e canoni;5;Acqua;26-10-2021;
1275;1;0;"42,70";"42,70";SICURITALIA IVRI S.P.A.;Z3827208DE;Fatt.n. 9117013887 del 19/10/2021 SERVIZIO DI PRONTO INTERVENTO OTTOBRE 2021;26-10-2021;71;0;89;1;Spese correnti;3;Acquisto di beni e servizi;2;Acquisto di servizi;5;Utenze e canoni;999;Utenze e canoni per altri servizi n.a.c.;26-10-2021;
1276;1;0;"141,52";"141,52";SICURITALIA IVRI S.P.A.;Z3827208DE;Fatt.n. 9117013887 del 19/10/2021 SERVIZIO DI PRONTO INTERVENTO OTTOBRE 2021;26-10-2021;235;0;171;1;Spese correnti;3;Acquisto di beni e servizi;2;Acquisto di servizi;5;Utenze e canoni;999;Utenze e canoni per altri servizi n.a.c.;26-10-2021;
1277;1;0;"141,52";"141,52";SICURITALIA IVRI S.P.A.;Z3827208DE;Fatt.n. 9117013887 del 19/10/2021 SERVIZIO DI PRONTO INTERVENTO OTTOBRE 2021;26-10-2021;252;0;170;1;Spese correnti;3;Acquisto di beni e servizi;2;Acquisto di servizi;5;Utenze e canoni;999;Utenze e canoni per altri servizi n.a.c.;26-10-2021;
1278;1;0;"85,40";"85,40";SICURITALIA IVRI S.P.A.;Z3827208DE;Fatt.n. 9117013887 del 19/10/2021 SERVIZIO DI PRONTO INTERVENTO OTTOBRE 2021;26-10-2021;310;0;93;1;Spese correnti;3;Acquisto di beni e servizi;2;Acquisto di servizi;5;Utenze e canoni;999;Utenze e canoni per altri servizi n.a.c.;26-10-2021;
1279;1;0;"42,70";"42,70";SICURITALIA IVRI S.P.A.;Z3827208DE;Fatt.n. 9117013887 del 19/10/2021 SERVIZIO DI PRONTO INTERVENTO OTTOBRE 2021;26-10-2021;313;2;94;1;Spese correnti;3;Acquisto di beni e servizi;2;Acquisto di servizi;5;Utenze e canoni;999;Utenze e canoni per altri servizi n.a.c.;26-10-2021;
1280;1;0;"42,70";"42,70";SICURITALIA IVRI S.P.A.;Z3827208DE;Fatt.n. 9117013887 del 19/10/2021 SERVIZIO DI PRONTO INTERVENTO OTTOBRE 2021;26-10-2021;561;2;90;1;Spese correnti;3;Acquisto di beni e servizi;2;Acquisto di servizi;5;Utenze e canoni;999;Utenze e canoni per altri servizi n.a.c.;26-10-2021;
1281;1;0;"200,00";"200,00";PUBLIKA S.R.L.;ZC83358C69;Fatt.n. 2520/PA del 14/10/2021 CORSO WEBINAR;26-10-2021;52;0;324;1;Spese correnti;3;Acquisto di beni e servizi;2;Acquisto di servizi;4;Acquisto di servizi per formazione e addestramento del personale dell'ente;999;Acquisto di servizi per altre spese per formazione e addestramento n.a.c.;26-10-2021;
1282;1;0;"51,46";"51,46";SENTRA ENERGIA S.R.L.;Z5D323BCD3;Fatt.n. 6000638 del 19/10/2021 ENERGIA ELETTRICA SETTEMBRE 2021 - PALAZZO MUNICIPALE;26-10-2021;34;0;264;1;Spese correnti;3;Acquisto di beni e servizi;2;Acquisto di servizi;5;Utenze e canoni;4;Energia elettrica;26-10-2021;
1283;1;0;"86,06";"86,06";SENTRA ENERGIA S.R.L.;Z5D323BCD3;Fatt.n. 6000643 del 19/10/2021 ENERGIA ELETTRICA SETTEMBRE 2021 - MAGAZZINO+PROTEZ. CIVILE;26-10-2021;71;0;265;1;Spese correnti;3;Acquisto di beni e servizi;2;Acquisto di servizi;5;Utenze e canoni;4;Energia elettrica;26-10-2021;
1284;1;0;"188,55";"402,07";SENTRA ENERGIA S.R.L.;Z5D323BCD3;Fatt.n. 6000633 del 19/10/2021 ENERGIA ELETTRICA SETTEMBRE 2021 - SC. PRIM. LIEDOLO;26-10-2021;235;0;266;1;Spese correnti;3;Acquisto di beni e servizi;2;Acquisto di servizi;5;Utenze e canoni;4;Energia elettrica;26-10-2021;
1284;2;0;"213,52";"402,07";SENTRA ENERGIA S.R.L.;Z5D323BCD3;Fatt.n. 6000637 del 19/10/2021 ENERGIA ELETTRICA SETTEMBRE 2021 - SC. PRIM CA' RAINATI;26-10-2021;235;0;266;1;Spese correnti;3;Acquisto di beni e servizi;2;Acquisto di servizi;5;Utenze e canoni;4;Energia elettrica;26-10-2021;
1285;1;0;"741,30";"741,30";SENTRA ENERGIA S.R.L.;Z5D323BCD3;Fatt.n. 6000635 del 19/10/2021 ENERGIA ELETTRICA SETTEMBRE 2021 - SC.PRIM. E MEDIE CAPOLUOGO;26-10-2021;252;0;267;1;Spese correnti;3;Acquisto di beni e servizi;2;Acquisto di servizi;5;Utenze e canoni;4;Energia elettrica;26-10-2021;
1286;1;0;"479,02";"479,02";SENTRA ENERGIA S.R.L.;Z5D323BCD3;Fatt.n. 6000639 del 19/10/2021 ENERGIA ELETTRICA SETTEMBRE 2021 - VILLA RUBELLI;26-10-2021;310;0;269;1;Spese correnti;3;Acquisto di beni e servizi;2;Acquisto di servizi;5;Utenze e canoni;4;Energia elettrica;26-10-2021;
1287;1;0;"34,39";"170,62";SENTRA ENERGIA S.R.L.;Z5D323BCD3;Fatt.n. 6000634 del 19/10/2021 ENERGIA ELETTRICA SETTEMBRE 2021 - CIMITERO LIEDOLO;26-10-2021;413;0;268;1;Spese correnti;3;Acquisto di beni e servizi;2;Acquisto di servizi;5;Utenze e canoni;4;Energia elettrica;26-10-2021;
1287;2;0;"52,67";"170,62";SENTRA ENERGIA S.R.L.;Z5D323BCD3;Fatt.n. 6000636 del 19/10/2021 ENERGIA ELETTRICA SETTEMBRE 2021 - CIMITERO CAPOLUOGO;26-10-2021;413;0;268;1;Spese correnti;3;Acquisto di beni e servizi;2;Acquisto di servizi;5;Utenze e canoni;4;Energia elettrica;26-10-2021;
1287;3;0;"83,56";"170,62";SENTRA ENERGIA S.R.L.;Z5D323BCD3;Fatt.n. 6000641 del 19/10/2021 ENERGIA ELETTRICA SETTEMBRE 2021 - CIMITERO CA' RAINATI;26-10-2021;413;0;268;1;Spese correnti;3;Acquisto di beni e servizi;2;Acquisto di servizi;5;Utenze e canoni;4;Energia elettrica;26-10-2021;
1288;1;0;"251,52";"608,17";SENTRA ENERGIA S.R.L.;Z5D323BCD3;Fatt.n. 6000642 del 19/10/2021 ENERGIA ELETTRICA SETTEMBRE 2021- STADIO COMUNALE;26-10-2021;530;0;270;1;Spese correnti;3;Acquisto di beni e servizi;2;Acquisto di servizi;5;Utenze e canoni;4;Energia elettrica;26-10-2021;
1288;2;0;"356,65";"608,17";SENTRA ENERGIA S.R.L.;Z5D323BCD3;Fatt.n. 6000640 del 19/10/2021 ENERGIA ELETTRICA SETTEMBRE 2021 - PALESTRA CA' RINATI;26-10-2021;530;0;270;1;Spese correnti;3;Acquisto di beni e servizi;2;Acquisto di servizi;5;Utenze e canoni;4;Energia elettrica;26-10-2021;
1289;1;0;"52,69";"570,91";SENTRA ENERGIA S.R.L.;Z5D323BCD3;Fatt.n. 6000645 del 19/10/2021 ENERGIA ELETTRICE SETTEMBRE 2021 - EX SC. SOPRACASTELLO;26-10-2021;561;2;271;1;Spese correnti;3;Acquisto di beni e servizi;2;Acquisto di servizi;5;Utenze e canoni;4;Energia elettrica;26-10-2021;
1289;2;0;"518,22";"570,91";SENTRA ENERGIA S.R.L.;Z5D323BCD3;Fatt.n. 6000646 del 19/10/2021 ENERGIA ELETTRICA SETTEMBRE 2021 - CENTRO POLIVALENTE;26-10-2021;561;2;271;1;Spese correnti;3;Acquisto di beni e servizi;2;Acquisto di servizi;5;Utenze e canoni;4;Energia elettrica;26-10-2021;
1290;1;0;"13,23";"29,04";ALTO TREVIGIANO SERVIZI S.R.L.;Z2C320E4DB;Fatt.n. 62202100007624 del 15/10/2021 SERVIZIO IDRICO MARZO OTTOBRE 2021;26-10-2021;235;0;173;1;Spese correnti;3;Acquisto di beni e servizi;2;Acquisto di servizi;5;Utenze e canoni;5;Acqua;26-10-2021;
1290;2;0;"15,81";"29,04";ALTO TREVIGIANO SERVIZI S.R.L.;Z2C320E4DB;Fatt.n. 62202100007634 del 15/10/2021 SERVIZIO IDRICO MARZO OTTOBRE 2021;26-10-2021;235;0;173;1;Spese correnti;3;Acquisto di beni e servizi;2;Acquisto di servizi;5;Utenze e canoni;5;Acqua;26-10-2021;
1291;1;0;"18,59";"1.304,39";ALTO TREVIGIANO SERVIZI S.R.L.;Z2C320E4DB;Fatt.n. 62202100007628 del 15/10/2021 SERVIZIO IDRICO MARZO OTTOBRE 2021;26-10-2021;530;0;177;1;Spese correnti;3;Acquisto di beni e servizi;2;Acquisto di servizi;5;Utenze e canoni;5;Acqua;26-10-2021;
1291;2;0;"43,40";"1.304,39";ALTO TREVIGIANO SERVIZI S.R.L.;Z2C320E4DB;Fatt.n. 62202100007619 del 15/10/2021 SERVIZIO IDRICO MARZO OTTOBRE 2021;26-10-2021;530;0;177;1;Spese correnti;3;Acquisto di beni e servizi;2;Acquisto di servizi;5;Utenze e canoni;5;Acqua;26-10-2021;
1291;3;0;"47,88";"1.304,39";ALTO TREVIGIANO SERVIZI S.R.L.;Z2C320E4DB;Fatt.n. 62202100007621 del 15/10/2021 SERVIZIO IDRICO MARZO OTTOBRE 2021;26-10-2021;530;0;177;1;Spese correnti;3;Acquisto di beni e servizi;2;Acquisto di servizi;5;Utenze e canoni;5;Acqua;26-10-2021;
1291;4;0;"92,13";"1.304,39";ALTO TREVIGIANO SERVIZI S.R.L.;Z2C320E4DB;Fatt.n. 62202100007626 del 15/10/2021 SERVIZIO IDRICO MARZO OTTOBRE 2021;26-10-2021;530;0;177;1;Spese correnti;3;Acquisto di beni e servizi;2;Acquisto di servizi;5;Utenze e canoni;5;Acqua;26-10-2021;
1291;5;0;"1.102,39";"1.304,39";ALTO TREVIGIANO SERVIZI S.R.L.;Z2C320E4DB;Fatt.n. 62202100007625 del 15/10/2021 SERVIZIO IDRICO MARZO OTTOBRE 2021;26-10-2021;530;0;177;1;Spese correnti;3;Acquisto di beni e servizi;2;Acquisto di servizi;5;Utenze e canoni;5;Acqua;26-10-2021;
1292;1;0;"0,25";"70,02";ALTO TREVIGIANO SERVIZI S.R.L.;Z2C320E4DB;Fatt.n. 62202100007612 del 15/10/2021 SERVIZIO IDRICO MARZO OTTOBRE 2021;26-10-2021;561;2;178;1;Spese correnti;3;Acquisto di beni e servizi;2;Acquisto di servizi;5;Utenze e canoni;5;Acqua;26-10-2021;
1292;2;0;"15,81";"70,02";ALTO TREVIGIANO SERVIZI S.R.L.;Z2C320E4DB;Fatt.n. 62202100007636 del 15/10/2021 SERVIZIO IDRICO MARZO OTTOBRE 2021;26-10-2021;561;2;178;1;Spese correnti;3;Acquisto di beni e servizi;2;Acquisto di servizi;5;Utenze e canoni;5;Acqua;26-10-2021;
1292;3;0;"53,96";"70,02";ALTO TREVIGIANO SERVIZI S.R.L.;Z2C320E4DB;Fatt.n. 62202100007638 del 15/10/2021 SERVIZIO IDRICO MARZO OTTOBRE 2021;26-10-2021;561;2;178;1;Spese correnti;3;Acquisto di beni e servizi;2;Acquisto di servizi;5;Utenze e canoni;5;Acqua;26-10-2021;
1293;1;0;"-4,40";"138,57";ALTO TREVIGIANO SERVIZI S.R.L.;Z2C320E4DB;Fatt.n. 62202100007622 del 15/10/2021 NOTA DI CREDITO SERVIZIO IDRICO MARZO OTTOBRE 2021;26-10-2021;591;2;179;1;Spese correnti;3;Acquisto di beni e servizi;2;Acquisto di servizi;5;Utenze e canoni;5;Acqua;26-10-2021;
1293;2;0;"-0,72";"138,57";ALTO TREVIGIANO SERVIZI S.R.L.;Z2C320E4DB;Fatt.n. 62202100007618 del 15/10/2021 NOTA DI CREDITO SERVIZIO IDRICO APRILE-SETTEMBRE 2021;26-10-2021;591;2;179;1;Spese correnti;3;Acquisto di beni e servizi;2;Acquisto di servizi;5;Utenze e canoni;5;Acqua;26-10-2021;
1293;3;0;"-0,66";"138,57";ALTO TREVIGIANO SERVIZI S.R.L.;Z2C320E4DB;Fatt.n. 62202100007616 del 15/10/2021 NOTA DI CREDITO SERVIZIO IDRICO MARZO OTTOBRE 2021;26-10-2021;591;2;179;1;Spese correnti;3;Acquisto di beni e servizi;2;Acquisto di servizi;5;Utenze e canoni;5;Acqua;26-10-2021;
1293;4;0;"-0,27";"138,57";ALTO TREVIGIANO SERVIZI S.R.L.;Z2C320E4DB;Fatt.n. 62202100007639 del 15/10/2021 NOTA DI CREDITO SERVIZIO IDRICO MARZO OTTOBRE 2021;26-10-2021;591;2;179;1;Spese correnti;3;Acquisto di beni e servizi;2;Acquisto di servizi;5;Utenze e canoni;5;Acqua;26-10-2021;
1293;5;0;"0,19";"138,57";ALTO TREVIGIANO SERVIZI S.R.L.;Z2C320E4DB;Fatt.n. 62202100007635 del 15/10/2021 SERVIZIO IDRICO MARZO OTTOBRE 2021;26-10-2021;591;2;179;1;Spese correnti;3;Acquisto di beni e servizi;2;Acquisto di servizi;5;Utenze e canoni;5;Acqua;26-10-2021;
1293;6;0;"0,42";"138,57";ALTO TREVIGIANO SERVIZI S.R.L.;Z2C320E4DB;Fatt.n. 62202100007614 del 15/10/2021 SERVIZIO IDRICO MARZO-SETTEMBRE 2021;26-10-2021;591;2;179;1;Spese correnti;3;Acquisto di beni e servizi;2;Acquisto di servizi;5;Utenze e canoni;5;Acqua;26-10-2021;
1293;7;0;"0,52";"138,57";ALTO TREVIGIANO SERVIZI S.R.L.;Z2C320E4DB;Fatt.n. 62202100007613 del 15/10/2021 SERVIZIO IDRICO MARZO OTTOBRE 2021;26-10-2021;591;2;179;1;Spese correnti;3;Acquisto di beni e servizi;2;Acquisto di servizi;5;Utenze e canoni;5;Acqua;26-10-2021;
1293;8;0;"9,20";"138,57";ALTO TREVIGIANO SERVIZI S.R.L.;Z2C320E4DB;Fatt.n. 62202100007617 del 15/10/2021 SERVIZIO IDRICO MARZO OTTOBRE 2021;26-10-2021;591;2;179;1;Spese correnti;3;Acquisto di beni e servizi;2;Acquisto di servizi;5;Utenze e canoni;5;Acqua;26-10-2021;
1293;9;0;"12,66";"138,57";ALTO TREVIGIANO SERVIZI S.R.L.;Z2C320E4DB;Fatt.n. 62202100007630 del 15/10/2021 SERVIZIO IDRICO MARZO OTTOBRE 2021;26-10-2021;591;2;179;1;Spese correnti;3;Acquisto di beni e servizi;2;Acquisto di servizi;5;Utenze e canoni;5;Acqua;26-10-2021;
1293;10;0;"13,03";"138,57";ALTO TREVIGIANO SERVIZI S.R.L.;Z2C320E4DB;Fatt.n. 62202100007631 del 15/10/2021 SERVIZIO IDRICO MARZO OTTOBRE 2021;26-10-2021;591;2;179;1;Spese correnti;3;Acquisto di beni e servizi;2;Acquisto di servizi;5;Utenze e canoni;5;Acqua;26-10-2021;
1293;11;0;"13,19";"138,57";ALTO TREVIGIANO SERVIZI S.R.L.;Z2C320E4DB;Fatt.n. 62202100007632 del 15/10/2021 SERVIZIO IDRICO MARZO OTTOBRE 2021;26-10-2021;591;2;179;1;Spese correnti;3;Acquisto di beni e servizi;2;Acquisto di servizi;5;Utenze e canoni;5;Acqua;26-10-2021;
1293;12;0;"15,10";"138,57";ALTO TREVIGIANO SERVIZI S.R.L.;Z2C320E4DB;Fatt.n. 62202100007629 del 15/10/2021 SERVIZIO IDRICO MARZO OTTOBRE 2021;26-10-2021;591;2;179;1;Spese correnti;3;Acquisto di beni e servizi;2;Acquisto di servizi;5;Utenze e canoni;5;Acqua;26-10-2021;
1293;13;0;"19,70";"138,57";ALTO TREVIGIANO SERVIZI S.R.L.;Z2C320E4DB;Fatt.n. 62202100007615 del 15/10/2021 SERVIZIO IDRICO MARZO OTTOBRE 2021;26-10-2021;591;2;179;1;Spese correnti;3;Acquisto di beni e servizi;2;Acquisto di servizi;5;Utenze e canoni;5;Acqua;26-10-2021;
1293;14;0;"60,61";"138,57";ALTO TREVIGIANO SERVIZI S.R.L.;Z2C320E4DB;Fatt.n. 62202100007637 del 15/10/2021 SERVIZIO IDRICO MARZO OTTOBRE 2021;26-10-2021;591;2;179;1;Spese correnti;3;Acquisto di beni e servizi;2;Acquisto di servizi;5;Utenze e canoni;5;Acqua;26-10-2021;
1294;1;0;"122,00";"122,00";TIM S.P.A.;ZE429271DF;SALDO Fatt.n. 4220421800035437  del 11/10/2021 TRAFFICO TELEFONICO 6 BIM 2021;28-10-2021;235;0;394;1;Spese correnti;3;Acquisto di beni e servizi;2;Acquisto di servizi;5;Utenze e canoni;999;Utenze e canoni per altri servizi n.a.c.;28-10-2021;
1304;1;1492;"1.430,39";"1.430,39";TESORERIA PROVINCIALE DELLO STATO; ;VERSAMENTO I.V.A. A DEBITO COMMERCIALE RELATIVA AL TERZO TRIMESTRE 2021 - COD. I.V.A. 616E.;02-11-2021;660;0;356;1;Spese correnti;10;Altre spese correnti;3;Versamenti IVA a debito;1;Versamenti IVA a debito per le gestioni commerciali;1;Versamenti IVA a debito per le gestioni commerciali;15-11-2021;
1306;1;0;"315,52";"315,52";BELLNET INTERNATIONAL S.R.L.;Z752BFBD5F;Fatt.n. FATTPA 2574_21 del 31/10/2021 TRAFFICO TELEFONICO;08-11-2021;34;0;58;1;Spese correnti;3;Acquisto di beni e servizi;2;Acquisto di servizi;5;Utenze e canoni;1;Telefonia fissa;08-11-2021;
1307;1;0;"1.525,00";"1.525,00";FELTRINLEGNO S.R.L.;Z2832EDF78;Fatt.n. 01/01/0000083 del 21/10/2021 ARREDAMENTO PER UFFICI COMUNALI;08-11-2021;868;0;321;2;Spese in conto capitale;2;Investimenti fissi lordi e acquisto di terreni;1;Beni materiali;10;"Beni immobili di valore culturale, storico ed artistico";1;"Fabbricati ad uso abitativo di valore culturale, storico ed artistico";08-11-2021;
1308;1;0;"28,06";"28,06";SICURITALIA IVRI S.P.A.;Z3827208DE;Fatt.n. 9117014415 del 31/10/2021 SERVIZI ISPETTIVI OTTOBRE 2021;08-11-2021;235;0;171;1;Spese correnti;3;Acquisto di beni e servizi;2;Acquisto di servizi;5;Utenze e canoni;999;Utenze e canoni per altri servizi n.a.c.;08-11-2021;
1313;1;0;"2.513,14";"2.513,14";BIM PIAVE NUOVE ENERGIE S.R.L.; ;SALDO Fatt.n. 9001958  del 20/07/2021 Anno termico 2020/2021 - 4Â° rata e conguaglio 01/05/2021-30/06/2021 - Scuola Primaria CÃ Rainati;09-11-2021;235;0;102;1;Spese correnti;3;Acquisto di beni e servizi;2;Acquisto di servizi;5;Utenze e canoni;6;Gas;09-11-2021;
1314;1;0;"922,66";"922,66";A.S. DI ANDREATTA GIUSEPPE & C. S.R.L.;Z04300D84C;SALDO Fatt.n. 586  del 31/07/2021 MANUTENZIONE IMPIANTI;09-11-2021;601;0;335;1;Spese correnti;3;Acquisto di beni e servizi;2;Acquisto di servizi;15;Contratti di servizio pubblico;15;Contratti di servizio per l'illuminazione pubblica;09-11-2021;
1315;1;0;"400,57";"400,57";A.S. DI ANDREATTA GIUSEPPE & C. S.R.L.;Z04300D84C;SALDO Fatt.n. 263  del 31/03/2021 OPERE ELETTRICHE PER TRASFERIMENTO SEDE COMUNALE IN VILLA;09-11-2021;601;0;335;1;Spese correnti;3;Acquisto di beni e servizi;2;Acquisto di servizi;15;Contratti di servizio pubblico;15;Contratti di servizio per l'illuminazione pubblica;09-11-2021;
1316;1;0;"53,36";"53,36";LA FONTESE DI GIANNI BROLESE & C. S.A.S.;Z10333EE15;Fatt.n. 198/F del 30/10/2021 FORNITURA CANCELLERIA PER UFFICI COMUNALI;09-11-2021;37;0;326;1;Spese correnti;3;Acquisto di beni e servizi;1;Acquisto di beni;2;Altri beni di consumo;1;"Carta, cancelleria e stampati";09-11-2021;
1317;1;0;"83,15";"83,15";POSTE ITALIANE SPA - PROVENTI POLO LOGISTICO;Z03302BD5C;Fatt.n. 1021274427 del 27/10/2021 PRODOTTI POSTALI OTTOBRE 2021;09-11-2021;26;0;45;1;Spese correnti;3;Acquisto di beni e servizi;2;Acquisto di servizi;16;Servizi amministrativi;2;Spese postali;09-11-2021;
1318;1;0;"17,63";"17,63";POSTE ITALIANE SPA - PROVENTI POLO LOGISTICO;Z03302BD5C;Fatt.n. 3210562097 del 22/10/2021 POSTE DELIVERY BUSINESS A DOMICILIO;09-11-2021;26;0;59;1;Spese correnti;3;Acquisto di beni e servizi;2;Acquisto di servizi;16;Servizi amministrativi;2;Spese postali;09-11-2021;
1319;1;0;"2.562,00";"2.562,00";FRATERNITA' CRISTIANA DI SAN ZENONE SOCIETA' COOP.VA;Z8330BC387;Fatt.n. FATTPA 1_21 del 21/10/2021 COMUNICAZIONE SU RADIO LUCE DI COMUNICATI COMUNALI;09-11-2021;330;0;40;1;Spese correnti;3;Acquisto di beni e servizi;2;Acquisto di servizi;99;Altri servizi;999;Altri servizi diversi n.a.c.;09-11-2021;
1320;1;0;"2.740,61";"2.740,61";TREVISAN MAURIZIO;Z7E30044C6;Fatt.n. 31 del 20/10/2021 ADEGUAMENTO SISMICO MUNICIPIO;09-11-2021;744;0;452;2;Spese in conto capitale;2;Investimenti fissi lordi e acquisto di terreni;1;Beni materiali;9;Beni immobili;19;Fabbricati ad uso strumentale;09-11-2021;
1321;1;0;"4,00";"293,56";ALFA ANTINCENDIO S.R.L.;ZA5276F7AD;Fatt.n. 148 del 30/09/2021 VERIFICA SEMESTRALE ESTINTORI;09-11-2021;34;0;366;1;Spese correnti;3;Acquisto di beni e servizi;2;Acquisto di servizi;5;Utenze e canoni;999;Utenze e canoni per altri servizi n.a.c.;09-11-2021;
1321;2;0;"289,56";"293,56";ALFA ANTINCENDIO S.R.L.;ZA5276F7AD;Fatt.n. 148 del 30/09/2021 VERIFICA SEMESTRALE ESTINTORI;09-11-2021;34;0;366;1;Spese correnti;3;Acquisto di beni e servizi;2;Acquisto di servizi;5;Utenze e canoni;999;Utenze e canoni per altri servizi n.a.c.;09-11-2021;
1322;1;0;"109,40";"109,40";ALFA ANTINCENDIO S.R.L.;ZA5276F7AD;Fatt.n. 148 del 30/09/2021 VERIFICA SEMESTRALE ESTINTORI;09-11-2021;311;0;367;1;Spese correnti;3;Acquisto di beni e servizi;2;Acquisto di servizi;5;Utenze e canoni;999;Utenze e canoni per altri servizi n.a.c.;09-11-2021;
1323;1;0;"1.303,87";"1.303,87";ALFA ANTINCENDIO S.R.L.;ZA5276F7AD;Fatt.n. 148 del 30/09/2021 VERIFICA SEMESTRALE ESTINTORI;09-11-2021;311;2;127;1;Spese correnti;3;Acquisto di beni e servizi;2;Acquisto di servizi;13;Servizi ausiliari per il funzionamento dell'ente;999;Altri servizi ausiliari n.a.c.;09-11-2021;
1324;1;0;"270,57";"270,57";ALFA ANTINCENDIO S.R.L.;ZA5276F7AD;Fatt.n. 148 del 30/09/2021 VERIFICA SEMESTRALE ESTINTORI;09-11-2021;313;2;368;1;Spese correnti;3;Acquisto di beni e servizi;2;Acquisto di servizi;5;Utenze e canoni;999;Utenze e canoni per altri servizi n.a.c.;09-11-2021;
1325;1;0;"1.076,28";"1.076,28";ALFA ANTINCENDIO S.R.L.;ZA5276F7AD;Fatt.n. 148 del 30/09/2021 VERIFICA SEMESTRALE ESTINTORI;09-11-2021;561;2;369;1;Spese correnti;3;Acquisto di beni e servizi;2;Acquisto di servizi;5;Utenze e canoni;999;Utenze e canoni per altri servizi n.a.c.;09-11-2021;
1326;1;0;"255,22";"255,22";ALFA ANTINCENDIO S.R.L.;ZA5276F7AD;Fatt.n. 148 del 30/09/2021 VERIFICA SEMESTRALE ESTINTORI;09-11-2021;561;4;126;1;Spese correnti;3;Acquisto di beni e servizi;2;Acquisto di servizi;9;Manutenzione ordinaria e riparazioni;5;Manutenzione ordinaria e riparazioni di attrezzature;09-11-2021;
1327;1;0;"17,37";"17,37";OMESSO NOMINATIVO NEL RISPETTO DELLA NORMATIVA SULLA PROTEZIONE DATI PERSONALI; ;LIQUIDAZIONE UTENTE G. C. FT. ALTO TREVIGIANO SERVIZI BOLLETTA N. 61202100721885 DEL 15.10.2021;09-11-2021;576;0;34;1;Spese correnti;4;Trasferimenti correnti;2;Trasferimenti correnti a Famiglie;2;Interventi assistenziali;999;Altri assegni e sussidi assistenziali;09-11-2021;
1328;1;0;"151,11";"6.256,14";SOCIETA' CONTARINA S.P.A.;Z1C312054E;Fatt.n. 0001389/VET del 20/10/2021 TARIFFA GESTIONE RIFIUTI URBANI - 2 ACCONTO 2021;09-11-2021;463;0;87;1;Spese correnti;3;Acquisto di beni e servizi;2;Acquisto di servizi;15;Contratti di servizio pubblico;4;Contratti di servizio per la raccolta rifiuti;09-11-2021;
1328;2;0;"393,37";"6.256,14";SOCIETA' CONTARINA S.P.A.;Z1C312054E;Fatt.n. 0001709/VET del 20/10/2021 TARIFFA GESTIONE RIFIUTI URBANI - 2 ACCONTO 2021;09-11-2021;463;0;87;1;Spese correnti;3;Acquisto di beni e servizi;2;Acquisto di servizi;15;Contratti di servizio pubblico;4;Contratti di servizio per la raccolta rifiuti;09-11-2021;
1328;3;0;"393,37";"6.256,14";SOCIETA' CONTARINA S.P.A.;Z1C312054E;Fatt.n. 0001467/VET del 20/10/2021 TARIFFA GESTIONE RIFIUTI URBANI -2 ACCONTO 2021;09-11-2021;463;0;87;1;Spese correnti;3;Acquisto di beni e servizi;2;Acquisto di servizi;15;Contratti di servizio pubblico;4;Contratti di servizio per la raccolta rifiuti;09-11-2021;
1328;4;0;"396,56";"6.256,14";SOCIETA' CONTARINA S.P.A.;Z1C312054E;Fatt.n. 0001591/VET del 20/10/2021 TARIFFA GESTIONE RIFIUTI URBANI - 2 ACCONTO 2021;09-11-2021;463;0;87;1;Spese correnti;3;Acquisto di beni e servizi;2;Acquisto di servizi;15;Contratti di servizio pubblico;4;Contratti di servizio per la raccolta rifiuti;09-11-2021;
1328;5;0;"409,27";"6.256,14";SOCIETA' CONTARINA S.P.A.;Z1C312054E;Fatt.n. 0001738/VET del 20/10/2021 TARIFFA GESTIONE RIFIUTI URBANI - 2 ACCONTO 2021;09-11-2021;463;0;87;1;Spese correnti;3;Acquisto di beni e servizi;2;Acquisto di servizi;15;Contratti di servizio pubblico;4;Contratti di servizio per la raccolta rifiuti;09-11-2021;
1328;6;0;"425,10";"6.256,14";SOCIETA' CONTARINA S.P.A.;Z1C312054E;Fatt.n. 0001575/VET del 20/10/2021 TARIFFA GESTIONE RIFIUTI URBANI - 2 ACCONTO 2021;09-11-2021;463;0;87;1;Spese correnti;3;Acquisto di beni e servizi;2;Acquisto di servizi;15;Contratti di servizio pubblico;4;Contratti di servizio per la raccolta rifiuti;09-11-2021;
1328;7;0;"505,51";"6.256,14";SOCIETA' CONTARINA S.P.A.;Z1C312054E;Fatt.n. 0001702/VET del 20/10/2021 TARIFFA GESTIONE RIFIUTI URBANI - 2 ACCONTO 2021;09-11-2021;463;0;87;1;Spese correnti;3;Acquisto di beni e servizi;2;Acquisto di servizi;15;Contratti di servizio pubblico;4;Contratti di servizio per la raccolta rifiuti;09-11-2021;
1328;8;0;"569,78";"6.256,14";SOCIETA' CONTARINA S.P.A.;Z1C312054E;Fatt.n. 0001725/VET del 20/10/2021 TARIFFA GESTIONE RIFIUTI URBANI - 2 ACCONTO 2021;09-11-2021;463;0;87;1;Spese correnti;3;Acquisto di beni e servizi;2;Acquisto di servizi;15;Contratti di servizio pubblico;4;Contratti di servizio per la raccolta rifiuti;09-11-2021;
1328;9;0;"590,55";"6.256,14";SOCIETA' CONTARINA S.P.A.;Z1C312054E;Fatt.n. 0001299/VET del 20/10/2021 TARIFFA GESTIONE RIFIUTI URBANI - 2 ACCONTO 2021;09-11-2021;463;0;87;1;Spese correnti;3;Acquisto di beni e servizi;2;Acquisto di servizi;15;Contratti di servizio pubblico;4;Contratti di servizio per la raccolta rifiuti;09-11-2021;
1328;10;0;"723,97";"6.256,14";SOCIETA' CONTARINA S.P.A.;Z1C312054E;Fatt.n. 0001603/VET del 20/10/2021 TARIFFA GESTIONE RIFIUTI URBANI - 2 ACCONTO 2021;09-11-2021;463;0;87;1;Spese correnti;3;Acquisto di beni e servizi;2;Acquisto di servizi;15;Contratti di servizio pubblico;4;Contratti di servizio per la raccolta rifiuti;09-11-2021;
1328;11;0;"801,76";"6.256,14";SOCIETA' CONTARINA S.P.A.;Z1C312054E;Fatt.n. 0001286/VET del 20/10/2021 TARIFFA GESTIONE RIFIUTI URBANI - 2 ACCONTO 2021;09-11-2021;463;0;87;1;Spese correnti;3;Acquisto di beni e servizi;2;Acquisto di servizi;15;Contratti di servizio pubblico;4;Contratti di servizio per la raccolta rifiuti;09-11-2021;
1328;12;0;"895,79";"6.256,14";SOCIETA' CONTARINA S.P.A.;Z1C312054E;Fatt.n. 0001449/VET del 20/10/2021 TARIFFA GESTIONE RIFIUTI URBANI - 2 ACCONTO 2021;09-11-2021;463;0;87;1;Spese correnti;3;Acquisto di beni e servizi;2;Acquisto di servizi;15;Contratti di servizio pubblico;4;Contratti di servizio per la raccolta rifiuti;09-11-2021;
1329;1;0;"69,00";"69,00";AZIENDA U.L.S.S. N.2  MARCA TREVIGIANA;Z963341138;SPESE MANTENIMENTO CANI RANDAGI - CIG N Z963341138.;10-11-2021;180;0;337;1;Spese correnti;3;Acquisto di beni e servizi;2;Acquisto di servizi;15;Contratti di servizio pubblico;11;Contratti di servizio per la lotta al randagismo;10-11-2021;
1364;1;0;"5.961,21";"5.961,21";AMMINISTRATORI COMUNALI; ;STIPENDI MESE DI: NOVEMBRE 21;15-11-2021;2;0;1;1;Spese correnti;3;Acquisto di beni e servizi;2;Acquisto di servizi;1;Organi e incarichi istituzionali dell'amministrazione;1;Organi istituzionali dell'amministrazione - Indennità;15-11-2021;
1367;1;1496;"170.501,10";"170.501,10";AZIENDA U.L.S.S. N.2  MARCA TREVIGIANA; ;QUOTE CAPITARIE 2021 - DISTRETTO DI ASOLO.;17-11-2021;580;0;380;1;Spese correnti;4;Trasferimenti correnti;1;Trasferimenti correnti a Amministrazioni Pubbliche;2;Trasferimenti correnti a Amministrazioni Locali;20;Trasferimenti correnti a Aziende sanitarie locali  a titolo di finanziamento del servizio sanitario nazionale;17-11-2021;
1368;1;0;"81,50";"81,50";OMESSO NOMINATIVO NEL RISPETTO DELLA NORMATIVA SULLA PROTEZIONE DATI PERSONALI; ;LIQUIDAZIONE UTENTE G.C. FATTURA SERVIZIO ELETTRICO NAZIONALE BIMESTRE SET. 2021- OTT. 2021 NUMERO 263556805039013 DEL 09.10.2021;17-11-2021;576;0;34;1;Spese correnti;4;Trasferimenti correnti;2;Trasferimenti correnti a Famiglie;2;Interventi assistenziali;999;Altri assegni e sussidi assistenziali;17-11-2021;
1369;1;0;"1,80";"1,80";OMESSO NOMINATIVO NEL RISPETTO DELLA NORMATIVA SULLA PROTEZIONE DATI PERSONALI; ;SPESA COMMISSIONE BOLLETTINO POSTALE -  FATTURA SERVIZIO ELETTRICO NAZIONALE BIMESTRE SET. 2021- OTT. 2021 NUMERO 263556805039013 DEL 09.10.2021;17-11-2021;576;0;34;1;Spese correnti;4;Trasferimenti correnti;2;Trasferimenti correnti a Famiglie;2;Interventi assistenziali;999;Altri assegni e sussidi assistenziali;17-11-2021;
1374;1;0;"78,35";"78,35";CONTO SERVIZIO DI TESORERIA; ;SPESE PER BANCO POSTA SERVIZIO DI TESORERIA PERIODO: GIUGNO/AGOSTO 2021 (vedi rev. n. 1512).;19-11-2021;45;0;332;1;Spese correnti;3;Acquisto di beni e servizi;2;Acquisto di servizi;16;Servizi amministrativi;2;Spese postali;19-11-2021;
1375;1;0;"300,16";"300,16";KUWAIT PETROLEUM ITALIA S.P.A.;Z5B2CB3D93;Fatt.n. PJ04472133 del 30/09/2021 FORNITURA CARBURANTE PROT. CIVILE - SETTEMBRE 2021;19-11-2021;590;0;111;1;Spese correnti;3;Acquisto di beni e servizi;1;Acquisto di beni;2;Altri beni di consumo;2;"Carburanti, combustibili e lubrificanti";19-11-2021;
1376;1;0;"155,01";"155,01";KUWAIT PETROLEUM ITALIA S.P.A.;Z5B2CB3D93;Fatt.n. PJ04593384 del 31/10/2021 CARBURANTE AUTO VIGILI - OTTOBRE 2021;19-11-2021;179;0;109;1;Spese correnti;3;Acquisto di beni e servizi;1;Acquisto di beni;2;Altri beni di consumo;2;"Carburanti, combustibili e lubrificanti";19-11-2021;
1377;1;0;"154,98";"154,98";KUWAIT PETROLEUM ITALIA S.P.A.;Z5B2CB3D93;SALDO Fatt.n. PJ04593383  del 31/10/2021 CARBURANTE AUTO UFF. SOCIALE - OTTOBRE 2021;19-11-2021;571;0;110;1;Spese correnti;3;Acquisto di beni e servizi;1;Acquisto di beni;2;Altri beni di consumo;2;"Carburanti, combustibili e lubrificanti";19-11-2021;
1378;1;0;"248,53";"248,53";KUWAIT PETROLEUM ITALIA S.P.A.;Z5B2CB3D93;Fatt.n. PJ04593382 del 31/10/2021 CARBURANTE AUTO PROT. CIVILE - OTTOBRE 2021;19-11-2021;590;0;111;1;Spese correnti;3;Acquisto di beni e servizi;1;Acquisto di beni;2;Altri beni di consumo;2;"Carburanti, combustibili e lubrificanti";19-11-2021;
1379;1;0;"7.471,71";"7.471,71";EURORISTORAZIONE S.R.L.;883088225D;Fatt.n. 21CPA05397 del 31/10/2021 PASTI MENSA - OTTOBRE 2021;19-11-2021;274;1;260;1;Spese correnti;3;Acquisto di beni e servizi;2;Acquisto di servizi;15;Contratti di servizio pubblico;6;Contratti di servizio per le mense scolastiche;19-11-2021;
1380;1;0;"1.201,65";"1.201,65";VINANTE MARGHERITA; ;Fatt.n. 3/PA del 13/11/2021 FORNITURA LIBRI DI TESTO;19-11-2021;239;0;352;1;Spese correnti;3;Acquisto di beni e servizi;1;Acquisto di beni;1;"Giornali, riviste e pubblicazioni";2;Pubblicazioni;19-11-2021;
1381;1;0;"1.686,00";"1.686,00";CASA DI RIPOSO 'AITA'; ;Fatt.n. 607/B del 11/11/2021 PRESTAZIONI SOCIALI L.V. - OTTOBRE 2021;19-11-2021;560;0;43;1;Spese correnti;3;Acquisto di beni e servizi;2;Acquisto di servizi;15;Contratti di servizio pubblico;8;Contratti di servizio di assistenza sociale residenziale e semiresidenziale;19-11-2021;
1382;1;0;"1.534,15";"1.534,15";LIBRERIA UBIK ANCORA NEWS SRL;Z12339C7CC;Fatt.n. 78-21 del 11/11/2021 FORNITURA LIBRI DI TESTO;22-11-2021;781;0;361;2;Spese in conto capitale;2;Investimenti fissi lordi e acquisto di terreni;1;Beni materiali;99;Altri beni materiali;1;Materiale bibliografico;22-11-2021;
1383;1;0;"3.245,00";"3.245,00";ALTO TREVIGIANO SERVIZI S.R.L.;Z893371544;Fatt.n. V3U-2100023 del 08/11/2021 ALLACCIAMENTO FOGNATURA;22-11-2021;744;0;529;2;Spese in conto capitale;2;Investimenti fissi lordi e acquisto di terreni;1;Beni materiali;9;Beni immobili;19;Fabbricati ad uso strumentale;22-11-2021;
1384;1;0;"2.069,12";"2.069,12";SERVIZI FUNEBRI GENERALI S.R.L.;ZDF32BE010;Fatt.n. 390/C del 30/10/2021 LAVORI CIMITERIALI DI RESTAURO TOMBA NOE BORDIGNON;22-11-2021;898;0;293;2;Spese in conto capitale;2;Investimenti fissi lordi e acquisto di terreni;1;Beni materiali;9;Beni immobili;15;Cimiteri;22-11-2021;
1385;1;0;"1.875,00";"1.875,00";SOCIETA' MONDO DELFINO  COOP. SOC.;Z8831B72EA;SALDO Fatt.n. 78/PA  del 09/11/2021 INTEGRAZIONE GESTIONE CENTRO ESTIVO 2021;22-11-2021;295;2;374;1;Spese correnti;3;Acquisto di beni e servizi;2;Acquisto di servizi;15;Contratti di servizio pubblico;999;Altre spese per contratti di servizio pubblico;22-11-2021;
1386;1;0;"154,23";"154,23";FRANGI;Z233369CA1;Fatt.n. 1822/E del 29/10/2021 PATTUMIERE A PEDALI;22-11-2021;234;0;339;1;Spese correnti;3;Acquisto di beni e servizi;1;Acquisto di beni;2;Altri beni di consumo;5;Accessori per uffici e alloggi;22-11-2021;
1387;1;0;"1.050,00";"1.050,00";UNICOOPER SERVIZI S.C.R.L.;ZA93246461;ACCONTO Fatt.n. 2010  del 31/10/2021 PULIZIA CENTRI ESTIVI 2021;22-11-2021;295;2;212;1;Spese correnti;3;Acquisto di beni e servizi;2;Acquisto di servizi;15;Contratti di servizio pubblico;999;Altre spese per contratti di servizio pubblico;22-11-2021;
1388;1;0;"267,60";"267,60";UNICOOPER SERVIZI S.C.R.L.;ZA93246461;SALDO Fatt.n. 2010  del 31/10/2021 PULIZIA CENTRI ESTIVI 2021;22-11-2021;295;2;382;1;Spese correnti;3;Acquisto di beni e servizi;2;Acquisto di servizi;15;Contratti di servizio pubblico;999;Altre spese per contratti di servizio pubblico;22-11-2021;
1389;1;0;"1.455,21";"1.455,21";NOIGROUP Coop. Soc. a R.L.;8551409DEF;Fatt.n. 858 del 31/10/2021 SERVIZIO BIBLIOTECA - OTTOBRE 2021;22-11-2021;302;1;28;1;Spese correnti;3;Acquisto di beni e servizi;2;Acquisto di servizi;16;Servizi amministrativi;999;Altre spese per servizi amministrativi;22-11-2021;
1390;1;0;"845,46";"845,46";BORTOLAZZO SILVANO;ZB933B4FE5;Fatt.n. 11/PA del 31/10/2021 LAVORI DI SISTEMAZIONE CHIUSINI IN GHISA;22-11-2021;591;1;376;1;Spese correnti;3;Acquisto di beni e servizi;2;Acquisto di servizi;9;Manutenzione ordinaria e riparazioni;12;Manutenzione ordinaria e riparazioni di terreni e beni materiali non prodotti;22-11-2021;
1391;1;0;"1.781,82";"1.781,82";UNICOOPER SERVIZI S.C.R.L.;ZA530DF999;Fatt.n. 1992 del 31/10/2021 SERVIZIO PULIZIE ED. COMUNALI - OTTOBRE 2021;22-11-2021;34;2;61;1;Spese correnti;3;Acquisto di beni e servizi;2;Acquisto di servizi;13;Servizi ausiliari per il funzionamento dell'ente;2;Servizi di pulizia e lavanderia;22-11-2021;
1392;1;0;"32,26";"32,26";ASCOTRADE S.P.A.;Z1A30C111E;Fatt.n. 501296464 del 03/11/2021 FORNITURA GAS;22-11-2021;71;0;48;1;Spese correnti;3;Acquisto di beni e servizi;2;Acquisto di servizi;5;Utenze e canoni;6;Gas;22-11-2021;
1393;1;0;"122,00";"122,00";CITTON GIANNANTONIO & C. SNC;Z2733273F0;Fatt.n. 0000001017 del 30/10/2021 FORNITURA MATERIALE DI FERRAMENTA;22-11-2021;590;1;340;1;Spese correnti;3;Acquisto di beni e servizi;2;Acquisto di servizi;9;Manutenzione ordinaria e riparazioni;1;"Manutenzione ordinaria e riparazioni di mezzi di trasporto ad uso civile, di sicurezza e ordine pubblico";22-11-2021;
1394;1;0;"809,59";"809,59";UNICOOPER SERVIZI S.C.R.L.;ZA530DF999;Fatt.n. 1993 del 31/10/2021 PULIZIE EDIFICI COMUNALI - OTTOBRE 2021;22-11-2021;561;3;62;1;Spese correnti;3;Acquisto di beni e servizi;2;Acquisto di servizi;13;Servizi ausiliari per il funzionamento dell'ente;2;Servizi di pulizia e lavanderia;22-11-2021;
1395;1;0;"646,50";"646,50";CASA DI SOGGIORNO 'PREALPINA' S.R.L.; ;Fatt.n. 160/04 del 31/10/2021 CONTRIBUTO RETTA - OTTOBRE 2021;22-11-2021;560;0;137;1;Spese correnti;3;Acquisto di beni e servizi;2;Acquisto di servizi;15;Contratti di servizio pubblico;8;Contratti di servizio di assistenza sociale residenziale e semiresidenziale;22-11-2021;
1396;1;0;"524,60";"524,60";ELA SISTEMI ELETTRONICI S.R.L.;Z1032DBEA0;Fatt.n. 18/PA del 30/10/2021 FORNITURA TELECAMERA;22-11-2021;780;0;300;2;Spese in conto capitale;2;Investimenti fissi lordi e acquisto di terreni;1;Beni materiali;9;Beni immobili;9;Infrastrutture telematiche;22-11-2021;
1397;1;0;"5.203,91";"5.203,91";COLPO NICOLO' & C. SNC;ZF733A96A1;Fatt.n. 17 del 03/11/2021 LAVORI DI TINTEGGIATURA MENSA E SPOGLIATOI SCUOLA;22-11-2021;772;0;371;2;Spese in conto capitale;2;Investimenti fissi lordi e acquisto di terreni;1;Beni materiali;9;Beni immobili;3;Fabbricati ad uso scolastico;22-11-2021;
1398;1;0;"230.450,00";"230.450,00";MAZZON COSTRUZIONI GENERALI SRL;85231852C4;Fatt.n. 000009/0CPA del 02/11/2021 ADEGUAMENTO SISMICO ED EFF.ENERGETICO DEL PALAZZO MUNICIPALE;22-11-2021;744;0;437;2;Spese in conto capitale;2;Investimenti fissi lordi e acquisto di terreni;1;Beni materiali;9;Beni immobili;19;Fabbricati ad uso strumentale;22-11-2021;
1399;1;0;"14.967,01";"14.967,01";STUDIO ZONCHEDDU E ASSOCIATI;Z7E30044C6;Fatt.n. 91 del 25/10/2021 COMPETENZE PROFESSIONALI PER DIREZIONE DEI LAVORI SEDE MUNICIPALE;22-11-2021;744;0;452;2;Spese in conto capitale;2;Investimenti fissi lordi e acquisto di terreni;1;Beni materiali;9;Beni immobili;19;Fabbricati ad uso strumentale;22-11-2021;
1400;1;0;"364,64";"755,44";SOCIETA' CONTARINA S.P.A.;Z1C312054E;Fatt.n. 0001737/VET del 20/10/2021 TARIFFA GESTIONE RIFIUTI URBANI - 2 ACCONTO 2021;22-11-2021;463;0;87;1;Spese correnti;3;Acquisto di beni e servizi;2;Acquisto di servizi;15;Contratti di servizio pubblico;4;Contratti di servizio per la raccolta rifiuti;22-11-2021;
1400;2;0;"390,80";"755,44";SOCIETA' CONTARINA S.P.A.;Z1C312054E;Fatt.n. 0001259/VET del 20/10/2021 TARIFFA GESTIONE RIFIUTI URBANI - 2 ACCONTO 2021;22-11-2021;463;0;87;1;Spese correnti;3;Acquisto di beni e servizi;2;Acquisto di servizi;15;Contratti di servizio pubblico;4;Contratti di servizio per la raccolta rifiuti;22-11-2021;
1401;1;0;"1.830,00";"1.830,00";TRAFFIC TECNOLOGY S.R.L.;ZC432B866D;Fatt.n. 1162/PA del 20/10/2021 ATTIVAZIONE MODULO ESPORTAZIONE ART. 180 CDS;22-11-2021;178;3;288;1;Spese correnti;3;Acquisto di beni e servizi;2;Acquisto di servizi;5;Utenze e canoni;999;Utenze e canoni per altri servizi n.a.c.;22-11-2021;
1402;1;0;"1.098,00";"1.098,00";NOIGROUP Coop. Soc. a R.L.;ZE231CE44C;Fatt.n. 775 del 30/09/2021 SERVIZI AMMINISTRATIVI PER L'EDILIZIA;22-11-2021;68;0;162;1;Spese correnti;3;Acquisto di beni e servizi;2;Acquisto di servizi;16;Servizi amministrativi;999;Altre spese per servizi amministrativi;22-11-2021;
1403;1;0;"40,00";"40,00";CENTRO STUDI BELLUNESE;Z493359552;Fatt.n. 197 del 10/08/2021 PARTECIPAZIONE A CORSO DI FORMAZIONE;22-11-2021;67;0;353;1;Spese correnti;3;Acquisto di beni e servizi;2;Acquisto di servizi;4;Acquisto di servizi per formazione e addestramento del personale dell'ente;999;Acquisto di servizi per altre spese per formazione e addestramento n.a.c.;22-11-2021;
1404;1;0;"3.970,57";"3.970,57";CARTOYS DI ZARDO MICHELA; ;Fatt.n. 66/PA del 10/11/2021 FORNITURA LIBRI SCOLASTICI;22-11-2021;239;0;352;1;Spese correnti;3;Acquisto di beni e servizi;1;Acquisto di beni;1;"Giornali, riviste e pubblicazioni";2;Pubblicazioni;22-11-2021;
1405;1;0;"860,57";"860,57";LA FONTESE DI GIANNI BROLESE & C. S.A.S.; ;Fatt.n. 589/V del 30/10/2021 ACQUISTO LIBRI DI TESTO;22-11-2021;239;0;352;1;Spese correnti;3;Acquisto di beni e servizi;1;Acquisto di beni;1;"Giornali, riviste e pubblicazioni";2;Pubblicazioni;22-11-2021;
1407;1;0;"942,87";"942,87";KYOCERA DOCUMENT SOLUTIONS ITALIA S.P.A.;ZF02648E30;Fatt.n. 1010724424 del 16/11/2021 CONTRATTO FOTOCOPIATORI;25-11-2021;34;0;519;1;Spese correnti;3;Acquisto di beni e servizi;2;Acquisto di servizi;5;Utenze e canoni;999;Utenze e canoni per altri servizi n.a.c.;25-11-2021;
1408;1;0;"411,59";"411,59";KYOCERA DOCUMENT SOLUTIONS ITALIA S.P.A.;ZF02648E30;Fatt.n. 1010724424 del 16/11/2021 CONTRATTO FOTOCOPIATORI;25-11-2021;252;0;520;1;Spese correnti;3;Acquisto di beni e servizi;2;Acquisto di servizi;5;Utenze e canoni;999;Utenze e canoni per altri servizi n.a.c.;25-11-2021;
1409;1;0;"1.063,12";"1.063,12";ALTO TREVIGIANO SERVIZI S.R.L.;Z2C320E4DB;Fatt.n. 62202100007633 del 15/10/2021 SERVIZIO IDRICO MARZO OTTOBRE 2021;25-11-2021;235;0;173;1;Spese correnti;3;Acquisto di beni e servizi;2;Acquisto di servizi;5;Utenze e canoni;5;Acqua;25-11-2021;
1410;1;0;"2.861,49";"2.861,49";ALTO TREVIGIANO SERVIZI S.R.L.;Z2C320E4DB;Fatt.n. 62202100007627 del 15/10/2021 SERVIZIO IDRICO MARZO-SETTEMBRE 2021;25-11-2021;252;0;174;1;Spese correnti;3;Acquisto di beni e servizi;2;Acquisto di servizi;5;Utenze e canoni;5;Acqua;25-11-2021;
1411;1;0;"1.178,43";"1.178,43";ALTO TREVIGIANO SERVIZI S.R.L.;Z2C320E4DB;Fatt.n. 62202100007623 del 15/10/2021 SERVIZIO IDRICO MARZO OTTOBRE 2021;25-11-2021;591;2;179;1;Spese correnti;3;Acquisto di beni e servizi;2;Acquisto di servizi;5;Utenze e canoni;5;Acqua;25-11-2021;
1412;1;0;"21,45";"21,45";ALFA ANTINCENDIO S.R.L.;ZA5276F7AD;Fatt.n. 175 del 31/10/2021 ESTINTORE A POLVERE REVISIONATO;25-11-2021;252;1;391;1;Spese correnti;3;Acquisto di beni e servizi;2;Acquisto di servizi;9;Manutenzione ordinaria e riparazioni;11;Manutenzione ordinaria e riparazioni di altri beni materiali;25-11-2021;
1413;1;0;"1.102,22";"1.102,22";E.N.P.A. ENTE NAZIONALE PROTEZIONE ANIMALI ONLUS;Z883204553;Fatt.n. 1551/PA del 14/10/2021 CUSTODIA E MANTENIMENTO CANI: LUGLIO-SETTEMBRE 2021;25-11-2021;180;0;181;1;Spese correnti;3;Acquisto di beni e servizi;2;Acquisto di servizi;15;Contratti di servizio pubblico;11;Contratti di servizio per la lotta al randagismo;25-11-2021;
1414;1;0;"36,82";"36,82";SICURITALIA IVRI S.P.A.;Z3827208DE;Fatt.n. 9117015642 del 17/11/2021 PRONTO INTERVENTO CENTRO POLIVALENTE - LUGLIO 2021;25-11-2021;71;0;89;1;Spese correnti;3;Acquisto di beni e servizi;2;Acquisto di servizi;5;Utenze e canoni;999;Utenze e canoni per altri servizi n.a.c.;25-11-2021;
1415;1;0;"153,28";"153,28";SICURITALIA IVRI S.P.A.;Z3827208DE;Fatt.n. 9117015642 del 17/11/2021 PRONTO INTERVENTO CENTRO POLIVALENTE - LUGLIO 2021;25-11-2021;235;0;92;1;Spese correnti;3;Acquisto di beni e servizi;2;Acquisto di servizi;5;Utenze e canoni;999;Utenze e canoni per altri servizi n.a.c.;25-11-2021;
1416;1;0;"141,52";"141,52";SICURITALIA IVRI S.P.A.;Z3827208DE;Fatt.n. 9117015642 del 17/11/2021 PRONTO INTERVENTO CENTRO POLIVALENTE - LUGLIO 2021;25-11-2021;252;0;170;1;Spese correnti;3;Acquisto di beni e servizi;2;Acquisto di servizi;5;Utenze e canoni;999;Utenze e canoni per altri servizi n.a.c.;25-11-2021;
1417;1;0;"85,40";"85,40";SICURITALIA IVRI S.P.A.;Z3827208DE;Fatt.n. 9117015642 del 17/11/2021 PRONTO INTERVENTO CENTRO POLIVALENTE - LUGLIO 2021;25-11-2021;310;0;93;1;Spese correnti;3;Acquisto di beni e servizi;2;Acquisto di servizi;5;Utenze e canoni;999;Utenze e canoni per altri servizi n.a.c.;25-11-2021;
1418;1;0;"36,82";"36,82";SICURITALIA IVRI S.P.A.;Z3827208DE;Fatt.n. 9117015642 del 17/11/2021 PRONTO INTERVENTO CENTRO POLIVALENTE - LUGLIO 2021;25-11-2021;313;2;94;1;Spese correnti;3;Acquisto di beni e servizi;2;Acquisto di servizi;5;Utenze e canoni;999;Utenze e canoni per altri servizi n.a.c.;25-11-2021;
1419;1;0;"36,82";"36,82";SICURITALIA IVRI S.P.A.;Z3827208DE;Fatt.n. 9117015642 del 17/11/2021 PRONTO INTERVENTO CENTRO POLIVALENTE - LUGLIO 2021;25-11-2021;561;2;90;1;Spese correnti;3;Acquisto di beni e servizi;2;Acquisto di servizi;5;Utenze e canoni;999;Utenze e canoni per altri servizi n.a.c.;25-11-2021;
1420;1;0;"5,88";"5,88";SICURITALIA IVRI S.P.A.;Z3827208DE;Fatt.n. 9117015642 del 17/11/2021 PRONTO INTERVENTO CENTRO POLIVALENTE - LUGLIO 2021;25-11-2021;561;2;169;1;Spese correnti;3;Acquisto di beni e servizi;2;Acquisto di servizi;5;Utenze e canoni;999;Utenze e canoni per altri servizi n.a.c.;25-11-2021;
1421;1;0;"226,92";"226,92";SICURITALIA IVRI S.P.A.;Z3827208DE;Fatt.n. 9117015643 del 17/11/2021 PRONTO INTERVENTO CENTRO POLIVALENTE - AGOSTO 2021;25-11-2021;235;0;171;1;Spese correnti;3;Acquisto di beni e servizi;2;Acquisto di servizi;5;Utenze e canoni;999;Utenze e canoni per altri servizi n.a.c.;25-11-2021;
1422;1;0;"141,52";"141,52";SICURITALIA IVRI S.P.A.;Z3827208DE;Fatt.n. 9117015643 del 17/11/2021 PRONTO INTERVENTO CENTRO POLIVALENTE - AGOSTO 2021;25-11-2021;252;0;170;1;Spese correnti;3;Acquisto di beni e servizi;2;Acquisto di servizi;5;Utenze e canoni;999;Utenze e canoni per altri servizi n.a.c.;25-11-2021;
1423;1;0;"85,40";"85,40";SICURITALIA IVRI S.P.A.;Z3827208DE;Fatt.n. 9117015643 del 17/11/2021 PRONTO INTERVENTO CENTRO POLIVALENTE - AGOSTO 2021;25-11-2021;310;0;93;1;Spese correnti;3;Acquisto di beni e servizi;2;Acquisto di servizi;5;Utenze e canoni;999;Utenze e canoni per altri servizi n.a.c.;25-11-2021;
1424;1;0;"42,70";"42,70";SICURITALIA IVRI S.P.A.;Z3827208DE;Fatt.n. 9117015643 del 17/11/2021 PRONTO INTERVENTO CENTRO POLIVALENTE - AGOSTO 2021;25-11-2021;561;2;169;1;Spese correnti;3;Acquisto di beni e servizi;2;Acquisto di servizi;5;Utenze e canoni;999;Utenze e canoni per altri servizi n.a.c.;25-11-2021;
1425;1;0;"42,70";"42,70";SICURITALIA IVRI S.P.A.;Z3827208DE;Fatt.n. 9117015548 del 16/11/2021 PRONTO INTERVENTO CENTRO POLIVALENTE - NOVEMBRE 2021;25-11-2021;71;0;89;1;Spese correnti;3;Acquisto di beni e servizi;2;Acquisto di servizi;5;Utenze e canoni;999;Utenze e canoni per altri servizi n.a.c.;25-11-2021;
1426;1;0;"141,52";"141,52";SICURITALIA IVRI S.P.A.;Z3827208DE;Fatt.n. 9117015548 del 16/11/2021 PRONTO INTERVENTO CENTRO POLIVALENTE - NOVEMBRE 2021;25-11-2021;235;0;92;1;Spese correnti;3;Acquisto di beni e servizi;2;Acquisto di servizi;5;Utenze e canoni;999;Utenze e canoni per altri servizi n.a.c.;25-11-2021;
1427;1;0;"141,52";"141,52";SICURITALIA IVRI S.P.A.;Z3827208DE;Fatt.n. 9117015548 del 16/11/2021 PRONTO INTERVENTO CENTRO POLIVALENTE - NOVEMBRE 2021;25-11-2021;252;0;170;1;Spese correnti;3;Acquisto di beni e servizi;2;Acquisto di servizi;5;Utenze e canoni;999;Utenze e canoni per altri servizi n.a.c.;25-11-2021;
1428;1;0;"85,40";"85,40";SICURITALIA IVRI S.P.A.;Z3827208DE;Fatt.n. 9117015548 del 16/11/2021 PRONTO INTERVENTO CENTRO POLIVALENTE - NOVEMBRE 2021;25-11-2021;310;0;93;1;Spese correnti;3;Acquisto di beni e servizi;2;Acquisto di servizi;5;Utenze e canoni;999;Utenze e canoni per altri servizi n.a.c.;25-11-2021;
1429;1;0;"42,70";"42,70";SICURITALIA IVRI S.P.A.;Z3827208DE;Fatt.n. 9117015548 del 16/11/2021 PRONTO INTERVENTO CENTRO POLIVALENTE - NOVEMBRE 2021;25-11-2021;313;2;94;1;Spese correnti;3;Acquisto di beni e servizi;2;Acquisto di servizi;5;Utenze e canoni;999;Utenze e canoni per altri servizi n.a.c.;25-11-2021;
1430;1;0;"42,70";"42,70";SICURITALIA IVRI S.P.A.;Z3827208DE;Fatt.n. 9117015548 del 16/11/2021 PRONTO INTERVENTO CENTRO POLIVALENTE - NOVEMBRE 2021;25-11-2021;561;2;90;1;Spese correnti;3;Acquisto di beni e servizi;2;Acquisto di servizi;5;Utenze e canoni;999;Utenze e canoni per altri servizi n.a.c.;25-11-2021;
1431;1;0;"68,51";"68,51";OMESSO NOMINATIVO NEL RISPETTO DELLA NORMATIVA SULLA PROTEZIONE DATI PERSONALI; ;LIQUIDAZIOEN UTENTE G.C. PASTI OTTOBRE FATTURA N. 620/B DEL 12.11.2021 CASA DI RIPOSO AITA;25-11-2021;576;0;34;1;Spese correnti;4;Trasferimenti correnti;2;Trasferimenti correnti a Famiglie;2;Interventi assistenziali;999;Altri assegni e sussidi assistenziali;25-11-2021;
1432;1;0;"1,00";"1,00";OMESSO NOMINATIVO NEL RISPETTO DELLA NORMATIVA SULLA PROTEZIONE DATI PERSONALI; ;SPESA COMMISSIONE BOLLETTINO POSTALE SU FATTURA 620/B DEL 12.11.2021 CASA DI RIPOSO AITA;25-11-2021;576;0;34;1;Spese correnti;4;Trasferimenti correnti;2;Trasferimenti correnti a Famiglie;2;Interventi assistenziali;999;Altri assegni e sussidi assistenziali;25-11-2021;
1433;1;0;"328,74";"328,74";OMESSO NOMINATIVO NEL RISPETTO DELLA NORMATIVA SULLA PROTEZIONE DATI PERSONALI; ;LIQUIDAZIONE UTENTE F.R. PASTI OTTOBRE FATTURA N. 622/B DEL 12.11.2021;25-11-2021;576;0;108;1;Spese correnti;4;Trasferimenti correnti;2;Trasferimenti correnti a Famiglie;2;Interventi assistenziali;999;Altri assegni e sussidi assistenziali;25-11-2021;
1434;1;0;"1,80";"1,80";OMESSO NOMINATIVO NEL RISPETTO DELLA NORMATIVA SULLA PROTEZIONE DATI PERSONALI; ;SPESA COMMISSIONE BOLLETTINO SU FATTURA N. 622/B DEL 12.11.2021 CAS ADI RIPOSO AITA;25-11-2021;576;0;108;1;Spese correnti;4;Trasferimenti correnti;2;Trasferimenti correnti a Famiglie;2;Interventi assistenziali;999;Altri assegni e sussidi assistenziali;25-11-2021;
1439;1;0;"-2.849,68";"671,98";KD DISINFESTAZIONI & DERATTIZZAZIONI S.R.L.;ZF631E43CB;Fatt.n. FPA 44/21 del 28/10/2021 NOTA DI CREDITO;07-12-2021;510;1;163;1;Spese correnti;3;Acquisto di beni e servizi;2;Acquisto di servizi;99;Altri servizi;999;Altri servizi diversi n.a.c.;07-12-2021;
1439;2;0;"-1.057,74";"671,98";KD DISINFESTAZIONI & DERATTIZZAZIONI S.R.L.;ZF631E43CB;Fatt.n. FPA 42/21 del 28/10/2021 NOTA DI CREDITO;07-12-2021;510;1;163;1;Spese correnti;3;Acquisto di beni e servizi;2;Acquisto di servizi;99;Altri servizi;999;Altri servizi diversi n.a.c.;07-12-2021;
1439;3;0;"671,98";"671,98";KD DISINFESTAZIONI & DERATTIZZAZIONI S.R.L.;ZF631E43CB;Fatt.n. FPA 46/21 del 28/10/2021 DERATIZZAZIONE;07-12-2021;510;1;163;1;Spese correnti;3;Acquisto di beni e servizi;2;Acquisto di servizi;99;Altri servizi;999;Altri servizi diversi n.a.c.;07-12-2021;
1439;4;0;"1.057,74";"671,98";KD DISINFESTAZIONI & DERATTIZZAZIONI S.R.L.;ZF631E43CB;Fatt.n. FPA 24/21 del 18/10/2021 SERVIZIO DI DISINFESTAZIONE DEL TERRITORIO;07-12-2021;510;1;163;1;Spese correnti;3;Acquisto di beni e servizi;2;Acquisto di servizi;99;Altri servizi;999;Altri servizi diversi n.a.c.;07-12-2021;
1439;5;0;"1.057,74";"671,98";KD DISINFESTAZIONI & DERATTIZZAZIONI S.R.L.;ZF631E43CB;Fatt.n. FPA 43/21 del 28/10/2021 DERATIZZAZIONE;07-12-2021;510;1;163;1;Spese correnti;3;Acquisto di beni e servizi;2;Acquisto di servizi;99;Altri servizi;999;Altri servizi diversi n.a.c.;07-12-2021;
1439;6;0;"1.791,94";"671,98";KD DISINFESTAZIONI & DERATTIZZAZIONI S.R.L.;ZF631E43CB;Fatt.n. FPA 24/21 del 18/10/2021 SERVIZIO DI DISINFESTAZIONE DEL TERRITORIO;07-12-2021;510;1;163;1;Spese correnti;3;Acquisto di beni e servizi;2;Acquisto di servizi;99;Altri servizi;999;Altri servizi diversi n.a.c.;07-12-2021;
1440;1;0;"2.177,70";"2.177,70";KD DISINFESTAZIONI & DERATTIZZAZIONI S.R.L.;ZF631E43CB;Fatt.n. FPA 45/21 del 28/10/2021 DISINFESTAZIONE LARVICIDA;07-12-2021;510;1;163;1;Spese correnti;3;Acquisto di beni e servizi;2;Acquisto di servizi;99;Altri servizi;999;Altri servizi diversi n.a.c.;07-12-2021;
1441;1;0;"1.534,14";"1.534,14";LIBRERIE GIUNTI S.r.l.  Libreria Giunti al Punto Via dei Carpani n. 21 Castelfranco Veneto;Z27339C88E;Fatt.n. 2021013749 del 29/11/2021 FORNITURA LIBRI PER BIBIOLTECA COMUNALE;07-12-2021;781;0;373;2;Spese in conto capitale;2;Investimenti fissi lordi e acquisto di terreni;1;Beni materiali;99;Altri beni materiali;1;Materiale bibliografico;07-12-2021;
1442;1;0;"1.534,15";"1.534,15";TORRE DI LIBRI SRL;ZA9339C84C;Fatt.n. 46 del 29/11/2021 ACQUISTO LIBRI PER BIBLIOTECA COMUNALE;07-12-2021;781;0;363;2;Spese in conto capitale;2;Investimenti fissi lordi e acquisto di terreni;1;Beni materiali;99;Altri beni materiali;1;Materiale bibliografico;07-12-2021;
1443;1;0;"28,06";"28,06";SICURITALIA IVRI S.P.A.;Z3827208DE;Fatt.n. 9117016070 del 30/11/2021 SERVIZI ISPETTIVI C/O SCUOLA PRIMARIA;07-12-2021;235;0;92;1;Spese correnti;3;Acquisto di beni e servizi;2;Acquisto di servizi;5;Utenze e canoni;999;Utenze e canoni per altri servizi n.a.c.;07-12-2021;
1444;1;0;"15.090,60";"15.090,60";Mobilita' di Marca S.P.A.;8804821026;Fatt.n. 000686 del 26/11/2021 TRASPORTO SCOLASTICO - SETTEMBRE 2021;07-12-2021;275;1;207;1;Spese correnti;3;Acquisto di beni e servizi;2;Acquisto di servizi;15;Contratti di servizio pubblico;2;Contratti di servizio di trasporto scolastico;07-12-2021;
1445;1;0;"15.090,60";"15.090,60";Mobilita' di Marca S.P.A.;8804821026;Fatt.n. 000687 del 26/11/2021 TRASPORTO SCOLASTICO - OTTOBRE 2021;07-12-2021;275;1;207;1;Spese correnti;3;Acquisto di beni e servizi;2;Acquisto di servizi;15;Contratti di servizio pubblico;2;Contratti di servizio di trasporto scolastico;07-12-2021;
1446;1;0;"15.090,60";"15.090,60";Mobilita' di Marca S.P.A.;8804821026;Fatt.n. 000695 del 30/11/2021 TRASPORTO SCOLASTICO - NOVEMBRE 2021;07-12-2021;275;1;207;1;Spese correnti;3;Acquisto di beni e servizi;2;Acquisto di servizi;15;Contratti di servizio pubblico;2;Contratti di servizio di trasporto scolastico;07-12-2021;
1447;1;0;"3.489,20";"3.489,20";LASEN MARCO;ZAE30F8727;Fatt.n. 4/B del 25/11/2021 REDAZIONE DELLA VALUTAZIONE DI COMPATIBILITA' IDRAULICA;07-12-2021;881;0;66;2;Spese in conto capitale;2;Investimenti fissi lordi e acquisto di terreni;3;Beni immateriali;5;Incarichi professionali per la realizzazione di investimenti;1;Incarichi professionali per la realizzazione di investimenti;07-12-2021;
1448;1;0;"2.659,60";"2.659,60";IOF DALL'OLIO MARCO;ZE63285BEB;Fatt.n. FPA 4/21 del 25/11/2021 SERVIZIO SMALTIMENTO RIFIUTI CIMITERIALI;07-12-2021;413;1;253;1;Spese correnti;3;Acquisto di beni e servizi;2;Acquisto di servizi;9;Manutenzione ordinaria e riparazioni;11;Manutenzione ordinaria e riparazioni di altri beni materiali;07-12-2021;
1449;1;0;"626,45";"626,45";BERNARDI DOMENICO;Z4A3119048;Fatt.n. FPA 8/21 del 24/11/2021 PRESTAZIONI PER ACCATASTAMENTO VILLA RUBELLI E BARCHESSA;07-12-2021;64;1;82;1;Spese correnti;3;Acquisto di beni e servizi;2;Acquisto di servizi;11;Prestazioni professionali e specialistiche;999;Altre prestazioni professionali e specialistiche n.a.c.;07-12-2021;
1450;1;0;"158,60";"158,60";IMQ S.P.A.;Z7831CD37E;Fatt.n. 121032471 del 18/11/2021 Collaudo/Verifica impianti elevatori;07-12-2021;235;1;154;1;Spese correnti;3;Acquisto di beni e servizi;2;Acquisto di servizi;9;Manutenzione ordinaria e riparazioni;4;Manutenzione ordinaria e riparazioni di impianti e macchinari;07-12-2021;
1451;1;0;"393,00";"393,00";POSTE ITALIANE SPA - PROVENTI POLO LOGISTICO;Z03302BD5C;Fatt.n. 1021297454 del 23/11/2021 PRODOTTI POSTALI;07-12-2021;26;0;45;1;Spese correnti;3;Acquisto di beni e servizi;2;Acquisto di servizi;16;Servizi amministrativi;2;Spese postali;07-12-2021;
1452;1;0;"3.124,94";"3.124,94";TRAFFIC TECNOLOGY S.R.L.;ZC432B866D;"Fatt.n. 1237/PA del 18/11/2021 CANONE DI ASSICURAZIONE, ASSISITENZA TECNICA SERVIZI CITTA' SICURA";07-12-2021;178;3;288;1;Spese correnti;3;Acquisto di beni e servizi;2;Acquisto di servizi;5;Utenze e canoni;999;Utenze e canoni per altri servizi n.a.c.;07-12-2021;
1453;1;0;"4.080,80";"4.080,80";CASA DI RIPOSO 'AITA'; ;Fatt.n. 692/B del 17/11/2021 SERVIZIO DI A.D. - OTTOBRE 2021;07-12-2021;562;1;240;1;Spese correnti;3;Acquisto di beni e servizi;2;Acquisto di servizi;15;Contratti di servizio pubblico;9;Contratti di servizio di assistenza sociale domiciliare;07-12-2021;
1454;1;0;"1.543,24";"1.543,24";LA ESSE COOPERATIVA SOCIALE;Z072F618EE;Fatt.n. 319/01 del 15/11/2021 PRESTAZIONI SOCIALI;07-12-2021;559;0;379;1;Spese correnti;3;Acquisto di beni e servizi;2;Acquisto di servizi;99;Altri servizi;999;Altri servizi diversi n.a.c.;07-12-2021;
1455;1;0;"307,00";"307,00";HALLEY VENETO SRL;Z0F32B249E;Fatt.n. 1/211488 del 24/11/2021 FORNITURA SOFTWARE PER UFF. POLIZIA LOCALE;07-12-2021;39;2;275;1;Spese correnti;3;Acquisto di beni e servizi;2;Acquisto di servizi;19;Servizi informatici e di telecomunicazioni;1;Gestione e manutenzione applicazioni;07-12-2021;
1456;1;0;"2.865,00";"2.865,00";HALLEY VENETO SRL;Z0F32B249E;Fatt.n. 1/211488 del 24/11/2021 FORNITURA SOFTWARE PER UFF. POLIZIA LOCALE;07-12-2021;182;0;274;1;Spese correnti;3;Acquisto di beni e servizi;2;Acquisto di servizi;19;Servizi informatici e di telecomunicazioni;1;Gestione e manutenzione applicazioni;07-12-2021;
1457;1;0;"408,50";"408,50";CASA DI SOGGIORNO 'PREALPINA' S.R.L.; ;Fatt.n. 180/04 del 30/11/2021 PRESTAZIONI SOCIALI;10-12-2021;560;0;137;1;Spese correnti;3;Acquisto di beni e servizi;2;Acquisto di servizi;15;Contratti di servizio pubblico;8;Contratti di servizio di assistenza sociale residenziale e semiresidenziale;10-12-2021;
1458;1;0;"287,70";"287,70";BELLNET INTERNATIONAL S.R.L.;Z752BFBD5F;Fatt.n. FATTPA 2855_21 del 30/11/2021 TRAFFICO LOCALE;10-12-2021;34;0;58;1;Spese correnti;3;Acquisto di beni e servizi;2;Acquisto di servizi;5;Utenze e canoni;1;Telefonia fissa;10-12-2021;
1459;1;0;"447,74";"447,74";BIM PIAVE NUOVE ENERGIE S.R.L.; ;Fatt.n. 9002262 del 30/11/2021 Intervento di assistenza eseguito presso Polivalente "La Roggia";10-12-2021;1079;0;370;2;Spese in conto capitale;2;Investimenti fissi lordi e acquisto di terreni;1;Beni materiali;9;Beni immobili;999;Beni immobili n.a.c.;10-12-2021;
1460;1;0;"2.394,00";"2.394,00";FAVERO MICHELANGELO;Z5430C8D95;Fatt.n. FPA 8/21 del 02/12/2021 ACCONTO PRESTAZIONI VALUTAZIONE PROGETTO VILLA RUBELLI;10-12-2021;780;0;70;2;Spese in conto capitale;2;Investimenti fissi lordi e acquisto di terreni;1;Beni materiali;9;Beni immobili;18;"Musei, teatri e biblioteche";10-12-2021;
1461;1;0;"1.342,00";"1.342,00";INTERNAVIGARE S.R.L.;Z2A2F6CEED;Fatt.n. 738 del 02/12/2021 Canone Annuale "San Zenone degli Ezzelini Smart" - Secondo anno;10-12-2021;39;1;398;1;Spese correnti;3;Acquisto di beni e servizi;2;Acquisto di servizi;7;Utilizzo di beni di terzi;6;Licenze d'uso per software;10-12-2021;
1462;1;0;"548,15";"548,15";OK UFFICIO ARREDAMENTO SRL;ZBB336929D;Fatt.n. 426/02 del 30/11/2021 FORNITURA ARMADIO SPOGLIATOIO;10-12-2021;234;0;358;1;Spese correnti;3;Acquisto di beni e servizi;1;Acquisto di beni;2;Altri beni di consumo;5;Accessori per uffici e alloggi;10-12-2021;
1463;1;0;"119,56";"119,56";LA FONTESE DI GIANNI BROLESE & C. S.A.S.;Z10333EE15;Fatt.n. 206/F del 30/11/2021 FORNITURA CANCELLERIA;10-12-2021;37;0;326;1;Spese correnti;3;Acquisto di beni e servizi;1;Acquisto di beni;2;Altri beni di consumo;1;"Carta, cancelleria e stampati";10-12-2021;
1464;1;0;"1.042,00";"1.042,00";FAVERO MICHELANGELO;ZAC321D92D;Fatt.n. FPA 9/21 del 02/12/2021 ACCONTO PER ANTINCENDIO SCUOLE;10-12-2021;64;1;187;1;Spese correnti;3;Acquisto di beni e servizi;2;Acquisto di servizi;11;Prestazioni professionali e specialistiche;999;Altre prestazioni professionali e specialistiche n.a.c.;10-12-2021;
1465;1;0;"2.210,64";"2.210,64";TERMOIDRAULICA SERRAGLIO S.A.S. DI S. SERRAGLIO & C.;Z0334067E3;Fatt.n. 76 del 29/11/2021 MANUTENZIONE IMP. IDRAULICI NELLE SCUOLE;10-12-2021;745;0;405;2;Spese in conto capitale;2;Investimenti fissi lordi e acquisto di terreni;1;Beni materiali;9;Beni immobili;3;Fabbricati ad uso scolastico;10-12-2021;
1466;1;0;"157,00";"157,00";KUWAIT PETROLEUM ITALIA S.P.A.;Z5B2CB3D93;Fatt.n. PJ04714026 del 30/11/2021 CARBURANTE AUTO UFFICI COMUNALI - NOVEMBRE 2021;10-12-2021;47;0;108;1;Spese correnti;3;Acquisto di beni e servizi;1;Acquisto di beni;2;Altri beni di consumo;2;"Carburanti, combustibili e lubrificanti";10-12-2021;
1467;1;0;"73,02";"73,02";KUWAIT PETROLEUM ITALIA S.P.A.;Z5B2CB3D93;Fatt.n. PJ04714030 del 30/11/2021 CARBURANTE AUTO VIGILI - NOVEMBRE 2021;10-12-2021;179;0;109;1;Spese correnti;3;Acquisto di beni e servizi;1;Acquisto di beni;2;Altri beni di consumo;2;"Carburanti, combustibili e lubrificanti";10-12-2021;
1468;1;0;"139,00";"139,00";KUWAIT PETROLEUM ITALIA S.P.A.;Z5B2CB3D93;Fatt.n. PJ04714029 del 30/11/2021 CARBURANTE AUTO UFF. SOCIALE - NOVEMBRE 2021;10-12-2021;571;0;110;1;Spese correnti;3;Acquisto di beni e servizi;1;Acquisto di beni;2;Altri beni di consumo;2;"Carburanti, combustibili e lubrificanti";10-12-2021;
1469;1;0;"97,01";"97,01";KUWAIT PETROLEUM ITALIA S.P.A.;Z5B2CB3D93;Fatt.n. PJ04714028 del 30/11/2021 CARBURANTE AUTO OPERAI - NOVEMBRE 2021;10-12-2021;590;0;111;1;Spese correnti;3;Acquisto di beni e servizi;1;Acquisto di beni;2;Altri beni di consumo;2;"Carburanti, combustibili e lubrificanti";10-12-2021;
1470;1;0;"6.166,56";"6.166,56";BORSELLI VITTORIO; ;LIQUIDAZIONE FATTURA N. 33 DEL 03.12.2021 - ONORARIO REVISORE DEI CONTI ANNO 01.11.2020 - 31.10.2021;10-12-2021;36;0;505;1;Spese correnti;3;Acquisto di beni e servizi;2;Acquisto di servizi;1;Organi e incarichi istituzionali dell'amministrazione;8;"Compensi agli organi istituzionali di revisione, di controllo ed altri incarichi istituzionali dell'amministrazione";10-12-2021;
1471;1;0;"1.700,00";"1.700,00";BORSELLI VITTORIO; ;LIQUIDAZIONE FATTURA N. 33 DEL 03.12.2021 - ONORARIO REVISORE DEI CONTI ANNO 01.11.2020 - 31.10.2021;10-12-2021;36;0;505;1;Spese correnti;3;Acquisto di beni e servizi;2;Acquisto di servizi;1;Organi e incarichi istituzionali dell'amministrazione;8;"Compensi agli organi istituzionali di revisione, di controllo ed altri incarichi istituzionali dell'amministrazione";10-12-2021;
1472;1;0;"51.506,04";"51.506,04";NOMINATIVI DIVERSI; ;EMERGENZA COVID-19. LIQUIDAZIONE  MISURE URGENTI DI SOLIDARIETA ALIMENTARE E DI SOSTEGNO ALLE FAMIGLIE PER IL PAGAMENTO DEI CANONI DI LOCAZIONE E DELLE UTENZE DOMESTICHE. (ART. 53 D.L. N. 73/2021 - ORDINANZA PROT. CIV. N. 658/2020 - D.L. 154/2020).;10-12-2021;563;0;435;1;Spese correnti;3;Acquisto di beni e servizi;1;Acquisto di beni;2;Altri beni di consumo;11;Generi alimentari;10-12-2021;
1473;1;0;"499,99";"499,99";ME-NE DI MEHMEDI NEVZIJA;Z13337A206;Fatt.n. 2/PA del 23/11/2021 TRASPORTO ANZIANI PER SOGGIORNO CLIMATICO A JESOLO;13-12-2021;578;1;342;1;Spese correnti;3;Acquisto di beni e servizi;2;Acquisto di servizi;99;Altri servizi;8;"Servizi di mobilita` a terzi (bus navetta, ...)";13-12-2021;
1474;1;0;"73,07";"73,07";MILANI SUSI; ;Fatt.n. 15 del 28/10/2021 FORNITURA LIBRI PER SCUOLA PRIMARIA;13-12-2021;239;0;352;1;Spese correnti;3;Acquisto di beni e servizi;1;Acquisto di beni;1;"Giornali, riviste e pubblicazioni";2;Pubblicazioni;13-12-2021;
1475;1;0;"6.156,56";"6.156,56";ANDREATTA BERTILLA; ;Fatt.n. 7/00 del 30/11/2021 FORNITURA LIBRI PER LE SCUOLE;13-12-2021;239;0;352;1;Spese correnti;3;Acquisto di beni e servizi;1;Acquisto di beni;1;"Giornali, riviste e pubblicazioni";2;Pubblicazioni;13-12-2021;
1476;1;0;"49,77";"49,77";L'IDEA DI TONIETTO MASSIMO; ;Fatt.n. 4/01 del 15/11/2021 FORNITURA GRATUITA LIBRI DI TESTO AGLI ALUNNI DELLE SCUOLE PRIMARIE;13-12-2021;239;0;352;1;Spese correnti;3;Acquisto di beni e servizi;1;Acquisto di beni;1;"Giornali, riviste e pubblicazioni";2;Pubblicazioni;13-12-2021;
1477;1;0;"5.232,00";"5.232,00";OMESSO NOMINATIVO NEL RISPETTO DELLA NORMATIVA SULLA PROTEZIONE DATI PERSONALI; ;"CONTRIBUTO ECONOMICO STRAORDINARIO - FINANZIATO IN PARTE CON DONAZIONI,  PER IL SOSTEGNO DI UN NUCLEO IN CONDIZIONE DI DISAGIO SOCIO-SANITARIO ED ECONOMICO.";13-12-2021;576;0;387;1;Spese correnti;4;Trasferimenti correnti;2;Trasferimenti correnti a Famiglie;2;Interventi assistenziali;999;Altri assegni e sussidi assistenziali;13-12-2021;
1478;1;0;"250,00";"7.500,00";ANDREATTA FRANCESCO; ;BORSA DI STUDIO COMUNALE E ATTESTATO DI MERITO ACCADEMICO RIFERITO ALL ANNO SCOLASTICO 2020/2021;13-12-2021;280;0;417;1;Spese correnti;4;Trasferimenti correnti;2;Trasferimenti correnti a Famiglie;3;"Borse di studio, dottorati di ricerca e contratti di formazione specialistica area medica";1;Borse di studio;13-12-2021;
1478;2;0;"500,00";"7.500,00";ANDREATTA LUIGI; ;BORSA DI STUDIO COMUNALE E ATTESTATO DI MERITO ACCADEMICO RIFERITO ALL ANNO SCOLASTICO 2020/2021;13-12-2021;280;0;417;1;Spese correnti;4;Trasferimenti correnti;2;Trasferimenti correnti a Famiglie;3;"Borse di studio, dottorati di ricerca e contratti di formazione specialistica area medica";1;Borse di studio;13-12-2021;
1478;3;0;"250,00";"7.500,00";ANDREOLA JESSICA; ;BORSA DI STUDIO COMUNALE E ATTESTATO DI MERITO ACCADEMICO RIFERITO ALL ANNO SCOLASTICO 2020/2021;13-12-2021;280;0;417;1;Spese correnti;4;Trasferimenti correnti;2;Trasferimenti correnti a Famiglie;3;"Borse di studio, dottorati di ricerca e contratti di formazione specialistica area medica";1;Borse di studio;13-12-2021;
1478;4;0;"250,00";"7.500,00";BOARO SARA; ;BORSA DI STUDIO COMUNALE E ATTESTATO DI MERITO ACCADEMICO RIFERITO ALL ANNO SCOLASTICO 2020/2021;13-12-2021;280;0;417;1;Spese correnti;4;Trasferimenti correnti;2;Trasferimenti correnti a Famiglie;3;"Borse di studio, dottorati di ricerca e contratti di formazione specialistica area medica";1;Borse di studio;13-12-2021;
1478;5;0;"250,00";"7.500,00";BOFFO ELEONORA; ;BORSA DI STUDIO COMUNALE E ATTESTATO DI MERITO ACCADEMICO RIFERITO ALL ANNO SCOLASTICO 2020/2021;13-12-2021;280;0;417;1;Spese correnti;4;Trasferimenti correnti;2;Trasferimenti correnti a Famiglie;3;"Borse di studio, dottorati di ricerca e contratti di formazione specialistica area medica";1;Borse di studio;13-12-2021;
1478;6;0;"500,00";"7.500,00";FABBIAN REGINATO VALENTINA; ;BORSA DI STUDIO COMUNALE E ATTESTATO DI MERITO ACCADEMICO RIFERITO ALL ANNO SCOLASTICO 2020/2021;13-12-2021;280;0;417;1;Spese correnti;4;Trasferimenti correnti;2;Trasferimenti correnti a Famiglie;3;"Borse di studio, dottorati di ricerca e contratti di formazione specialistica area medica";1;Borse di studio;13-12-2021;
1478;7;0;"500,00";"7.500,00";FANTATO GIULIA; ;BORSA DI STUDIO COMUNALE E ATTESTATO DI MERITO ACCADEMICO RIFERITO ALL ANNO SCOLASTICO 2020/2021;13-12-2021;280;0;417;1;Spese correnti;4;Trasferimenti correnti;2;Trasferimenti correnti a Famiglie;3;"Borse di studio, dottorati di ricerca e contratti di formazione specialistica area medica";1;Borse di studio;13-12-2021;
1478;8;0;"250,00";"7.500,00";GIACOBBO IRENE; ;BORSA DI STUDIO COMUNALE E ATTESTATO DI MERITO ACCADEMICO RIFERITO ALL ANNO SCOLASTICO 2020/2021;13-12-2021;280;0;417;1;Spese correnti;4;Trasferimenti correnti;2;Trasferimenti correnti a Famiglie;3;"Borse di studio, dottorati di ricerca e contratti di formazione specialistica area medica";1;Borse di studio;13-12-2021;
1478;9;0;"250,00";"7.500,00";GIACOBBO LUCA; ;BORSA DI STUDIO COMUNALE E ATTESTATO DI MERITO ACCADEMICO RIFERITO ALL ANNO SCOLASTICO 2020/2021;13-12-2021;280;0;417;1;Spese correnti;4;Trasferimenti correnti;2;Trasferimenti correnti a Famiglie;3;"Borse di studio, dottorati di ricerca e contratti di formazione specialistica area medica";1;Borse di studio;13-12-2021;
1478;10;0;"250,00";"7.500,00";GIACOMETTI ALBERTO; ;BORSA DI STUDIO COMUNALE E ATTESTATO DI MERITO ACCADEMICO RIFERITO ALL ANNO SCOLASTICO 2020/2021;13-12-2021;280;0;417;1;Spese correnti;4;Trasferimenti correnti;2;Trasferimenti correnti a Famiglie;3;"Borse di studio, dottorati di ricerca e contratti di formazione specialistica area medica";1;Borse di studio;13-12-2021;
1478;11;0;"500,00";"7.500,00";GIORDAN LAURA; ;BORSA DI STUDIO COMUNALE E ATTESTATO DI MERITO ACCADEMICO RIFERITO ALL ANNO SCOLASTICO 2020/2021;13-12-2021;280;0;417;1;Spese correnti;4;Trasferimenti correnti;2;Trasferimenti correnti a Famiglie;3;"Borse di studio, dottorati di ricerca e contratti di formazione specialistica area medica";1;Borse di studio;13-12-2021;
1478;12;0;"250,00";"7.500,00";GUARDA SINDY; ;BORSA DI STUDIO COMUNALE E ATTESTATO DI MERITO ACCADEMICO RIFERITO ALL ANNO SCOLASTICO 2020/2021;13-12-2021;280;0;417;1;Spese correnti;4;Trasferimenti correnti;2;Trasferimenti correnti a Famiglie;3;"Borse di studio, dottorati di ricerca e contratti di formazione specialistica area medica";1;Borse di studio;13-12-2021;
1478;13;0;"500,00";"7.500,00";MARTINEZ LORELEEN; ;BORSA DI STUDIO COMUNALE E ATTESTATO DI MERITO ACCADEMICO RIFERITO ALL ANNO SCOLASTICO 2020/2021;13-12-2021;280;0;417;1;Spese correnti;4;Trasferimenti correnti;2;Trasferimenti correnti a Famiglie;3;"Borse di studio, dottorati di ricerca e contratti di formazione specialistica area medica";1;Borse di studio;13-12-2021;
1478;14;0;"500,00";"7.500,00";PELLIZZARI ANDREA; ;BORSA DI STUDIO COMUNALE E ATTESTATO DI MERITO ACCADEMICO RIFERITO ALL ANNO SCOLASTICO 2020/2021;13-12-2021;280;0;417;1;Spese correnti;4;Trasferimenti correnti;2;Trasferimenti correnti a Famiglie;3;"Borse di studio, dottorati di ricerca e contratti di formazione specialistica area medica";1;Borse di studio;13-12-2021;
1478;15;0;"500,00";"7.500,00";PELLIZZARI MATILDE; ;BORSA DI STUDIO COMUNALE E ATTESTATO DI MERITO ACCADEMICO RIFERITO ALL ANNO SCOLASTICO 2020/2021;13-12-2021;280;0;417;1;Spese correnti;4;Trasferimenti correnti;2;Trasferimenti correnti a Famiglie;3;"Borse di studio, dottorati di ricerca e contratti di formazione specialistica area medica";1;Borse di studio;13-12-2021;
1478;16;0;"250,00";"7.500,00";PELLIZZARI NOEMI; ;BORSA DI STUDIO COMUNALE E ATTESTATO DI MERITO ACCADEMICO RIFERITO ALL ANNO SCOLASTICO 2020/2021;13-12-2021;280;0;417;1;Spese correnti;4;Trasferimenti correnti;2;Trasferimenti correnti a Famiglie;3;"Borse di studio, dottorati di ricerca e contratti di formazione specialistica area medica";1;Borse di studio;13-12-2021;
1478;17;0;"250,00";"7.500,00";RIGATO FEDERICO; ;BORSA DI STUDIO COMUNALE E ATTESTATO DI MERITO ACCADEMICO RIFERITO ALL ANNO SCOLASTICO 2020/2021;13-12-2021;280;0;417;1;Spese correnti;4;Trasferimenti correnti;2;Trasferimenti correnti a Famiglie;3;"Borse di studio, dottorati di ricerca e contratti di formazione specialistica area medica";1;Borse di studio;13-12-2021;
1478;18;0;"250,00";"7.500,00";STECKO LUCA IOAN; ;BORSA DI STUDIO COMUNALE E ATTESTATO DI MERITO ACCADEMICO RIFERITO ALL ANNO SCOLASTICO 2020/2021;13-12-2021;280;0;417;1;Spese correnti;4;Trasferimenti correnti;2;Trasferimenti correnti a Famiglie;3;"Borse di studio, dottorati di ricerca e contratti di formazione specialistica area medica";1;Borse di studio;13-12-2021;
1478;19;0;"500,00";"7.500,00";ZANANDREA SIMONE; ;BORSA DI STUDIO COMUNALE E ATTESTATO DI MERITO ACCADEMICO RIFERITO ALL ANNO SCOLASTICO 2020/2021;13-12-2021;280;0;417;1;Spese correnti;4;Trasferimenti correnti;2;Trasferimenti correnti a Famiglie;3;"Borse di studio, dottorati di ricerca e contratti di formazione specialistica area medica";1;Borse di studio;13-12-2021;
1478;20;0;"250,00";"7.500,00";ZILIO EDOARDO; ;BORSA DI STUDIO COMUNALE E ATTESTATO DI MERITO ACCADEMICO RIFERITO ALL ANNO SCOLASTICO 2020/2021;13-12-2021;280;0;417;1;Spese correnti;4;Trasferimenti correnti;2;Trasferimenti correnti a Famiglie;3;"Borse di studio, dottorati di ricerca e contratti di formazione specialistica area medica";1;Borse di studio;13-12-2021;
1478;21;0;"500,00";"7.500,00";ZONTA ASYA; ;BORSA DI STUDIO COMUNALE E ATTESTATO DI MERITO ACCADEMICO RIFERITO ALL ANNO SCOLASTICO 2020/2021;13-12-2021;280;0;417;1;Spese correnti;4;Trasferimenti correnti;2;Trasferimenti correnti a Famiglie;3;"Borse di studio, dottorati di ricerca e contratti di formazione specialistica area medica";1;Borse di studio;13-12-2021;
1479;1;0;"2.167,56";"2.167,56";OMESSO NOMINATIVO NEL RISPETTO DELLA NORMATIVA SULLA PROTEZIONE DATI PERSONALI; ;PROGETTO DI INTERVENTO EDUCATIVO RIVOLTO A MINORE (PE-RIA 7).;13-12-2021;567;0;383;1;Spese correnti;3;Acquisto di beni e servizi;2;Acquisto di servizi;99;Altri servizi;999;Altri servizi diversi n.a.c.;13-12-2021;
1480;1;0;"600,00";"600,00";ASSOCIAZIONE PRO LOCO SAN ZENONE DEGLI EZZELINI; ;IMPEGNO DI SPESA PER EROGAZIONE CONTRIBUTO STRAORDINARIO ALLASSOCIAZIONE PRO LOCO DI SAN ZENONE DEGLI EZZELINI PER PARTECIPAZIONE AL 61 FESTIVAL DI MAJANO (UD).;13-12-2021;333;1;242;1;Spese correnti;4;Trasferimenti correnti;1;Trasferimenti correnti a Amministrazioni Pubbliche;4;Trasferimenti correnti a organismi interni e/o unità locali della amministrazione;1;Trasferimenti correnti a organismi interni e/o unità locali della amministrazione;13-12-2021;
1481;1;0;"1.360,00";"1.360,00";COMITATO PROVINCIALE PER L'UNICEF DI TREVISO; ;"IMPEGNO DI SPESA A FAVORE DEL COMITATO PROVINCIALE UNICEF - SEZIONE DI TREVISO, PER ADESIONE ALLINIZIATIVA PER OGNI BAMBINO NATO, UN BAMBINO SALVATO.";13-12-2021;500;0;393;1;Spese correnti;4;Trasferimenti correnti;1;Trasferimenti correnti a Amministrazioni Pubbliche;4;Trasferimenti correnti a organismi interni e/o unità locali della amministrazione;1;Trasferimenti correnti a organismi interni e/o unità locali della amministrazione;13-12-2021;
1482;1;0;"7.336,00";"7.336,00";ISTITUTO COMPRENSIVO STATALE; ;IMPEGNO E LIQUIIDAZIONE ALLISTITUTO COMPRENSIVO STATALE DI SAN ZENONE DEGLI EZZELINI QUOTA PARTE DEL CONTRIBUTO PER LO SVILUPPO DELLA FORMAZIONE E DELLISTRUZIONE SCOLASTICA - ANNO SCOLASTICO 2021/2022.;13-12-2021;254;1;433;1;Spese correnti;4;Trasferimenti correnti;1;Trasferimenti correnti a Amministrazioni Pubbliche;4;Trasferimenti correnti a organismi interni e/o unità locali della amministrazione;1;Trasferimenti correnti a organismi interni e/o unità locali della amministrazione;13-12-2021;
1483;1;0;"650,00";"650,00";COMUNE DI CASTELFRANCO VENETO; ;IMPEGNO E LIQUIDAZIONE AL COMUNE DI CASTELFRANCO VENETO QUOTA ADESIONE AI SERVIZI DEL POLO BIBLIOTECARIO DI CASTELFRANCO VENETO - csb cENTRO sERVIZI bIBLIOTECHE;13-12-2021;306;1;434;1;Spese correnti;4;Trasferimenti correnti;1;Trasferimenti correnti a Amministrazioni Pubbliche;2;Trasferimenti correnti a Amministrazioni Locali;3;Trasferimenti correnti a Comuni;13-12-2021;
1484;1;0;"810,00";"810,00";GRUPPO ALPINI DI CA'RAINATI; ;IMPEGNO DI SPESA A FAVORE DEL GRUPPO ALPINI DI CARAINATI PER ORGANIZZARE LA CERIMONIA DI COMMEMORAZIONE CADUTI DI TUTTE LE GUERRE 2021;13-12-2021;334;0;439;1;Spese correnti;4;Trasferimenti correnti;1;Trasferimenti correnti a Amministrazioni Pubbliche;4;Trasferimenti correnti a organismi interni e/o unità locali della amministrazione;1;Trasferimenti correnti a organismi interni e/o unità locali della amministrazione;13-12-2021;
1485;1;0;"1.500,00";"1.500,00";ASSOCIAZIONE PRO LOCO SAN ZENONE DEGLI EZZELINI; ;"IMPEGNO DI SPESA PER CONTRIBUTO ALLA ASSOCIAZIONE PRO LOCO DI SAN ZENONE DEGLI EZZELINI PER LORGANIZZAZIONE DELLA VISITA DELLA DELEGAZIONE DI MARZLING DEL 12,13 E 14 NOVEMBRE 2021";13-12-2021;334;0;440;1;Spese correnti;4;Trasferimenti correnti;1;Trasferimenti correnti a Amministrazioni Pubbliche;4;Trasferimenti correnti a organismi interni e/o unità locali della amministrazione;1;Trasferimenti correnti a organismi interni e/o unità locali della amministrazione;13-12-2021;
1486;1;0;"1.090,00";"1.090,00";ASSOCIAZIONE PRO LOCO SAN ZENONE DEGLI EZZELINI; ;IMPEGNO DI SPESA PER CONTRIBUTO ALLA PRO LOCO DI SAN ZENONE DEGLI EZZELINI PER LORGANIZZAZIONE DELLA PRESENTAZIONE DELLA PALA DI NOE BORDIGNON;13-12-2021;334;0;441;1;Spese correnti;4;Trasferimenti correnti;1;Trasferimenti correnti a Amministrazioni Pubbliche;4;Trasferimenti correnti a organismi interni e/o unità locali della amministrazione;1;Trasferimenti correnti a organismi interni e/o unità locali della amministrazione;13-12-2021;
1487;1;0;"1.500,00";"1.500,00";PEDEMONTANA EMERGENZA ONLUS; ;EROGAZIONE CONTRIBUTO ECONOMICO A SOSTEGNO DELLASSOCIAZIONE DI VOLONTARIATO PEDEMONTANA EMERGENZA ONLUS. IMPEGNO DI SPESA.;14-12-2021;334;0;442;1;Spese correnti;4;Trasferimenti correnti;1;Trasferimenti correnti a Amministrazioni Pubbliche;4;Trasferimenti correnti a organismi interni e/o unità locali della amministrazione;1;Trasferimenti correnti a organismi interni e/o unità locali della amministrazione;14-12-2021;
1488;1;0;"2.500,00";"2.500,00";CONGREGAZIONE MECHITARISTA ARMENA; ;IMPEGNO E LIQUIDAZIONE CONTRIBUTO ALLA CONGREGAZIONE ARMENA MECHITARISTA DI VENEZIA PER ORGANIZZAZIONE CONCERTO RIFLESSI E RISONANZE ARMENE NELLE TERRE VENETE DEL 10.12.2021.;14-12-2021;333;1;416;1;Spese correnti;4;Trasferimenti correnti;1;Trasferimenti correnti a Amministrazioni Pubbliche;4;Trasferimenti correnti a organismi interni e/o unità locali della amministrazione;1;Trasferimenti correnti a organismi interni e/o unità locali della amministrazione;14-12-2021;
1489;1;0;"200,00";"9.106,00";A.S.D. FIDES ET ROBUR; ;ASSEGNAZIONE CONTRIBUTI AD ASSOCIAZIONI ED ENTI - IMPEGNO DI SPESA ANNO 2021;14-12-2021;574;0;443;1;Spese correnti;4;Trasferimenti correnti;1;Trasferimenti correnti a Amministrazioni Pubbliche;4;Trasferimenti correnti a organismi interni e/o unità locali della amministrazione;1;Trasferimenti correnti a organismi interni e/o unità locali della amministrazione;14-12-2021;
1489;2;0;"2.306,00";"9.106,00";ACADEMIA SODALITAS ECELINORUM; ;ASSEGNAZIONE CONTRIBUTI AD ASSOCIAZIONI ED ENTI - IMPEGNO DI SPESA ANNO 2021;14-12-2021;574;0;443;1;Spese correnti;4;Trasferimenti correnti;1;Trasferimenti correnti a Amministrazioni Pubbliche;4;Trasferimenti correnti a organismi interni e/o unità locali della amministrazione;1;Trasferimenti correnti a organismi interni e/o unità locali della amministrazione;14-12-2021;
1489;3;0;"150,00";"9.106,00";ACAT - ULSS 8 ONLUS; ;ASSEGNAZIONE CONTRIBUTI AD ASSOCIAZIONI ED ENTI - IMPEGNO DI SPESA ANNO 2021;14-12-2021;574;0;443;1;Spese correnti;4;Trasferimenti correnti;1;Trasferimenti correnti a Amministrazioni Pubbliche;4;Trasferimenti correnti a organismi interni e/o unità locali della amministrazione;1;Trasferimenti correnti a organismi interni e/o unità locali della amministrazione;14-12-2021;
1489;4;0;"2.000,00";"9.106,00";ASSOC.SENTIERI NATURA-PARCO DEGLI EZZELINI; ;ASSEGNAZIONE CONTRIBUTI AD ASSOCIAZIONI ED ENTI - IMPEGNO DI SPESA ANNO 2021;14-12-2021;574;0;443;1;Spese correnti;4;Trasferimenti correnti;1;Trasferimenti correnti a Amministrazioni Pubbliche;4;Trasferimenti correnti a organismi interni e/o unità locali della amministrazione;1;Trasferimenti correnti a organismi interni e/o unità locali della amministrazione;14-12-2021;
1489;5;0;"1.000,00";"9.106,00";ASSOCIAZIONE FAMIGLIE ATLANTIS APS; ;ASSEGNAZIONE CONTRIBUTI AD ASSOCIAZIONI ED ENTI - IMPEGNO DI SPESA ANNO 2021;14-12-2021;574;0;443;1;Spese correnti;4;Trasferimenti correnti;1;Trasferimenti correnti a Amministrazioni Pubbliche;4;Trasferimenti correnti a organismi interni e/o unità locali della amministrazione;1;Trasferimenti correnti a organismi interni e/o unità locali della amministrazione;14-12-2021;
1489;6;0;"200,00";"9.106,00";ASSOCIAZIONE LA MARGHERITA; ;ASSEGNAZIONE CONTRIBUTI AD ASSOCIAZIONI ED ENTI - IMPEGNO DI SPESA ANNO 2021;14-12-2021;574;0;443;1;Spese correnti;4;Trasferimenti correnti;1;Trasferimenti correnti a Amministrazioni Pubbliche;4;Trasferimenti correnti a organismi interni e/o unità locali della amministrazione;1;Trasferimenti correnti a organismi interni e/o unità locali della amministrazione;14-12-2021;
1489;7;0;"900,00";"9.106,00";ASSOCIAZIONE OASI SAN DANIELE; ;ASSEGNAZIONE CONTRIBUTI AD ASSOCIAZIONI ED ENTI - IMPEGNO DI SPESA ANNO 2021;14-12-2021;574;0;443;1;Spese correnti;4;Trasferimenti correnti;1;Trasferimenti correnti a Amministrazioni Pubbliche;4;Trasferimenti correnti a organismi interni e/o unità locali della amministrazione;1;Trasferimenti correnti a organismi interni e/o unità locali della amministrazione;14-12-2021;
1489;8;0;"300,00";"9.106,00";ASSOCIAZIONE PADOVA MILLENNIUM BASKET - ONLUS; ;ASSEGNAZIONE CONTRIBUTI AD ASSOCIAZIONI ED ENTI - IMPEGNO DI SPESA ANNO 2021;14-12-2021;574;0;443;1;Spese correnti;4;Trasferimenti correnti;1;Trasferimenti correnti a Amministrazioni Pubbliche;4;Trasferimenti correnti a organismi interni e/o unità locali della amministrazione;1;Trasferimenti correnti a organismi interni e/o unità locali della amministrazione;14-12-2021;
1489;9;0;"200,00";"9.106,00";ASSOCIAZIONE VOLONTARIATO A.V.A.B.; ;ASSEGNAZIONE CONTRIBUTI AD ASSOCIAZIONI ED ENTI - IMPEGNO DI SPESA ANNO 2021;14-12-2021;574;0;443;1;Spese correnti;4;Trasferimenti correnti;1;Trasferimenti correnti a Amministrazioni Pubbliche;4;Trasferimenti correnti a organismi interni e/o unità locali della amministrazione;1;Trasferimenti correnti a organismi interni e/o unità locali della amministrazione;14-12-2021;
1489;10;0;"500,00";"9.106,00";CARITAS PARROCCHIALE-CENTRO DISTRIBUZIONE ALIMENTARE; ;ASSEGNAZIONE CONTRIBUTI AD ASSOCIAZIONI ED ENTI - IMPEGNO DI SPESA ANNO 2021;14-12-2021;574;0;443;1;Spese correnti;4;Trasferimenti correnti;1;Trasferimenti correnti a Amministrazioni Pubbliche;4;Trasferimenti correnti a organismi interni e/o unità locali della amministrazione;1;Trasferimenti correnti a organismi interni e/o unità locali della amministrazione;14-12-2021;
1489;11;0;"500,00";"9.106,00";CENTRO PARROCCHIALE DI S.ZENONE; ;ASSEGNAZIONE CONTRIBUTI AD ASSOCIAZIONI ED ENTI - IMPEGNO DI SPESA ANNO 2021;14-12-2021;574;0;443;1;Spese correnti;4;Trasferimenti correnti;1;Trasferimenti correnti a Amministrazioni Pubbliche;4;Trasferimenti correnti a organismi interni e/o unità locali della amministrazione;1;Trasferimenti correnti a organismi interni e/o unità locali della amministrazione;14-12-2021;
1489;12;0;"250,00";"9.106,00";COOPERATIVA SOCIALE VITA E LAVORO SCRL; ;ASSEGNAZIONE CONTRIBUTI AD ASSOCIAZIONI ED ENTI - IMPEGNO DI SPESA ANNO 2021;14-12-2021;574;0;443;1;Spese correnti;4;Trasferimenti correnti;1;Trasferimenti correnti a Amministrazioni Pubbliche;4;Trasferimenti correnti a organismi interni e/o unità locali della amministrazione;1;Trasferimenti correnti a organismi interni e/o unità locali della amministrazione;14-12-2021;
1489;13;0;"200,00";"9.106,00";GRUPPO ALPINI DI CA'RAINATI; ;ASSEGNAZIONE CONTRIBUTI AD ASSOCIAZIONI ED ENTI - IMPEGNO DI SPESA ANNO 2021;14-12-2021;574;0;443;1;Spese correnti;4;Trasferimenti correnti;1;Trasferimenti correnti a Amministrazioni Pubbliche;4;Trasferimenti correnti a organismi interni e/o unità locali della amministrazione;1;Trasferimenti correnti a organismi interni e/o unità locali della amministrazione;14-12-2021;
1489;14;0;"200,00";"9.106,00";GRUPPO ALPINI DI LIEDOLO; ;ASSEGNAZIONE CONTRIBUTI AD ASSOCIAZIONI ED ENTI - IMPEGNO DI SPESA ANNO 2021;14-12-2021;574;0;443;1;Spese correnti;4;Trasferimenti correnti;1;Trasferimenti correnti a Amministrazioni Pubbliche;4;Trasferimenti correnti a organismi interni e/o unità locali della amministrazione;1;Trasferimenti correnti a organismi interni e/o unità locali della amministrazione;14-12-2021;
1489;15;0;"200,00";"9.106,00";GRUPPO ALPINI SAN ZENONE PRESIDENTE TORRESAN PIO; ;ASSEGNAZIONE CONTRIBUTI AD ASSOCIAZIONI ED ENTI - IMPEGNO DI SPESA ANNO 2021;14-12-2021;574;0;443;1;Spese correnti;4;Trasferimenti correnti;1;Trasferimenti correnti a Amministrazioni Pubbliche;4;Trasferimenti correnti a organismi interni e/o unità locali della amministrazione;1;Trasferimenti correnti a organismi interni e/o unità locali della amministrazione;14-12-2021;
1490;1;0;"309,46";"309,46";OMESSO NOMINATIVO NEL RISPETTO DELLA NORMATIVA SULLA PROTEZIONE DATI PERSONALI; ;LIQUIDAZIONE UTENTE F.R. PASTI NOVEMBRE 2021 N. FT. 715/B DEL 03.12.2021 CASA DI RIPOSO AITA.;14-12-2021;576;0;108;1;Spese correnti;4;Trasferimenti correnti;2;Trasferimenti correnti a Famiglie;2;Interventi assistenziali;999;Altri assegni e sussidi assistenziali;14-12-2021;
1491;1;0;"64,24";"64,24";OMESSO NOMINATIVO NEL RISPETTO DELLA NORMATIVA SULLA PROTEZIONE DATI PERSONALI; ;LIQUIDAZIONE UTENTE PASTI NOVEMBRE 2021 FT N. 715/B DEL 03.12.2021 CASA DI RIPOSO AITA.;14-12-2021;576;0;34;1;Spese correnti;4;Trasferimenti correnti;2;Trasferimenti correnti a Famiglie;2;Interventi assistenziali;999;Altri assegni e sussidi assistenziali;14-12-2021;
1492;1;0;"168,40";"168,40";NADALIN MAURA - PIEVE DI SOLIGO (tv);Z2E341A758;Fatt.n. 19 del 07/12/2021 LETTURE ANIMATE E LABORATORIO CREATIVO DI NATALE;14-12-2021;305;1;407;1;Spese correnti;3;Acquisto di beni e servizi;2;Acquisto di servizi;2;"Organizzazione eventi, pubblicita` e servizi per trasferta";5;Organizzazione e partecipazione a manifestazioni e convegni;14-12-2021;
1498;1;0;"908,90";"908,90";CENTRO STUDI AMMINISTRATIVI DELLA M.T.;ZA63454CBD;Fatt.n. 1033/2021 del 13/12/2021 ESPLETAMENTO PRATICHE DI PENSIONE.;15-12-2021;55;0;437;1;Spese correnti;3;Acquisto di beni e servizi;2;Acquisto di servizi;17;Servizi finanziari;999;Spese per servizi finanziari n.a.c.;15-12-2021;
1499;1;0;"400,00";"6.000,00";OMESSO NOMINATIVO NEL RISPETTO DELLA NORMATIVA SULLA PROTEZIONE DATI PERSONALI; ;PROGETTI DI INTERVENTO EDUCATIVO RIVOLTO A MINORI (PR-RIA 7) PER IL MINORE BAJRUSHI NIHAD.;15-12-2021;567;0;432;1;Spese correnti;3;Acquisto di beni e servizi;2;Acquisto di servizi;99;Altri servizi;999;Altri servizi diversi n.a.c.;15-12-2021;
1499;2;0;"400,00";"6.000,00";OMESSO NOMINATIVO NEL RISPETTO DELLA NORMATIVA SULLA PROTEZIONE DATI PERSONALI; ;PROGETTI DI INTERVENTO EDUCATIVO RIVOLTO A MINORI (PR-RIA 7) PER IL MINORE BOTTER LORENZO.;15-12-2021;567;0;432;1;Spese correnti;3;Acquisto di beni e servizi;2;Acquisto di servizi;99;Altri servizi;999;Altri servizi diversi n.a.c.;15-12-2021;
1499;3;0;"800,00";"6.000,00";OMESSO NOMINATIVO NEL RISPETTO DELLA NORMATIVA SULLA PROTEZIONE DATI PERSONALI; ;PROGETTI DI INTERVENTO EDUCATIVO RIVOLTO A MINORI (PR-RIA 7) PER IL MINORE CHARIAI AMINA.;15-12-2021;567;0;432;1;Spese correnti;3;Acquisto di beni e servizi;2;Acquisto di servizi;99;Altri servizi;999;Altri servizi diversi n.a.c.;15-12-2021;
1499;4;0;"800,00";"6.000,00";OMESSO NOMINATIVO NEL RISPETTO DELLA NORMATIVA SULLA PROTEZIONE DATI PERSONALI; ;PROGETTI DI INTERVENTO EDUCATIVO RIVOLTO A MINORI (PR-RIA 7) PER IL MINORE GAZZOLA KRIS.;15-12-2021;567;0;432;1;Spese correnti;3;Acquisto di beni e servizi;2;Acquisto di servizi;99;Altri servizi;999;Altri servizi diversi n.a.c.;15-12-2021;
1499;5;0;"400,00";"6.000,00";OMESSO NOMINATIVO NEL RISPETTO DELLA NORMATIVA SULLA PROTEZIONE DATI PERSONALI; ;PROGETTI DI INTERVENTO EDUCATIVO RIVOLTO A MINORI (PR-RIA 7) PER IL MINORE ISMAILI EDIS;15-12-2021;567;0;432;1;Spese correnti;3;Acquisto di beni e servizi;2;Acquisto di servizi;99;Altri servizi;999;Altri servizi diversi n.a.c.;15-12-2021;
1499;6;0;"800,00";"6.000,00";OMESSO NOMINATIVO NEL RISPETTO DELLA NORMATIVA SULLA PROTEZIONE DATI PERSONALI; ;PROGETTI DI INTERVENTO EDUCATIVO RIVOLTO A MINORI (PR-RIA 7) PER IL MINORE SAJJAD TAYBA.;15-12-2021;567;0;432;1;Spese correnti;3;Acquisto di beni e servizi;2;Acquisto di servizi;99;Altri servizi;999;Altri servizi diversi n.a.c.;15-12-2021;
1499;7;0;"800,00";"6.000,00";OMESSO NOMINATIVO NEL RISPETTO DELLA NORMATIVA SULLA PROTEZIONE DATI PERSONALI; ;PROGETTI DI INTERVENTO EDUCATIVO RIVOLTO A MINORI (PR-RIA 7) PER I MINORI OPPONG ANGEL DORA SANGOFUND E OPPONG MARIAN SANGOFUND;15-12-2021;567;0;432;1;Spese correnti;3;Acquisto di beni e servizi;2;Acquisto di servizi;99;Altri servizi;999;Altri servizi diversi n.a.c.;15-12-2021;
1499;8;0;"800,00";"6.000,00";OMESSO NOMINATIVO NEL RISPETTO DELLA NORMATIVA SULLA PROTEZIONE DATI PERSONALI; ;PROGETTI DI INTERVENTO EDUCATIVO RIVOLTO A MINORI (PR-RIA 7) PER I MINORI QAISER KANZUL IMAAN E QAISER INAAYA.;15-12-2021;567;0;432;1;Spese correnti;3;Acquisto di beni e servizi;2;Acquisto di servizi;99;Altri servizi;999;Altri servizi diversi n.a.c.;15-12-2021;
1499;9;0;"800,00";"6.000,00";OMESSO NOMINATIVO NEL RISPETTO DELLA NORMATIVA SULLA PROTEZIONE DATI PERSONALI; ;PROGETTI DI INTERVENTO EDUCATIVO RIVOLTO A MINORI (PR-RIA 7) PER IL MINORE ZAHEER ZAIN UL ABIDEEN;15-12-2021;567;0;432;1;Spese correnti;3;Acquisto di beni e servizi;2;Acquisto di servizi;99;Altri servizi;999;Altri servizi diversi n.a.c.;15-12-2021;
1500;1;0;"152,96";"152,96";OMESSO NOMINATIVO NEL RISPETTO DELLA NORMATIVA SULLA PROTEZIONE DATI PERSONALI; ;CONTRIBUTO ECONOMICO STRAORDINARIO PER IL PAGAMENTO DI UNA BOLLETTA URGENTE.;15-12-2021;576;0;360;1;Spese correnti;4;Trasferimenti correnti;2;Trasferimenti correnti a Famiglie;2;Interventi assistenziali;999;Altri assegni e sussidi assistenziali;15-12-2021;
1501;1;0;"930,00";"930,00";CENTRO STUDI AMMINISTRATIVI DELLA M.T.; ;IMPEGNO E LIQUIDAZIONE CONTRIBUTO ASSOCIATIVO ANNO 2021 PER LA GESTIONE DEL CONTENZIOSO TRIBUTARIO AL CENTRO STUDI AMMINISTRATIVI DELLA MARCA TREVIGIANA.;15-12-2021;128;0;425;1;Spese correnti;3;Acquisto di beni e servizi;2;Acquisto di servizi;99;Altri servizi;3;Quote di associazioni;15-12-2021;
1502;1;0;"31.562,50";"31.562,50";A.T.E.R. - AZIENDA TERRIT. EDILIZIA RESIDENZIALE; ;SALDO Fatt.n. G9/2021  del 04/02/2021 LOCAZIONE IMMOBILE  - ANNO 2021;15-12-2021;561;0;77;1;Spese correnti;3;Acquisto di beni e servizi;2;Acquisto di servizi;7;Utilizzo di beni di terzi;1;Locazione di beni immobili;15-12-2021;
1503;1;0;"5.925,00";"5.925,00";ASSOCIAZIONE AMICI DEI POMPIERI; ;CONTRIBUTO ALLASSOCIAZIONE AMICI DEI POMPIERI PER LA GESTIONE DEL DISTACCAMENTO VOLONTARIO DEI VIGILI DEL FUOCO - ANNO 2019 - ANNO 2020 - ANNO 2021.;15-12-2021;334;0;408;1;Spese correnti;4;Trasferimenti correnti;1;Trasferimenti correnti a Amministrazioni Pubbliche;4;Trasferimenti correnti a organismi interni e/o unità locali della amministrazione;1;Trasferimenti correnti a organismi interni e/o unità locali della amministrazione;15-12-2021;
1504;1;1847;"77.479,60";"77.479,60";CONSIGLIO DI BACINO PRIULA; ;CONTRIBUTO PER LE AGEVOLAZIONI UTENZE DOMESTICHE 2021.;15-12-2021;565;0;447;1;Spese correnti;4;Trasferimenti correnti;1;Trasferimenti correnti a Amministrazioni Pubbliche;2;Trasferimenti correnti a Amministrazioni Locali;18;Trasferimenti correnti a Consorzi di enti locali;28-12-2021;
1505;1;1848;"54.766,51";"54.766,51";CONSIGLIO DI BACINO PRIULA; ;CONTRIBUTO PER LE AGEVOLAZIONI TARIFFARIE RIFIUTI UTENZE NON DOMESTICHE 2021.;15-12-2021;566;0;448;1;Spese correnti;4;Trasferimenti correnti;1;Trasferimenti correnti a Amministrazioni Pubbliche;2;Trasferimenti correnti a Amministrazioni Locali;18;Trasferimenti correnti a Consorzi di enti locali;28-12-2021;
1506;1;1849;"11.697,41";"11.697,41";CONSIGLIO DI BACINO PRIULA; ;CONTRIBUTO PER LE AGEVOLAZIONI 2020 E I MINORI INTROITI TARIFFARI RIFIUTI 2021.;15-12-2021;566;0;449;1;Spese correnti;4;Trasferimenti correnti;1;Trasferimenti correnti a Amministrazioni Pubbliche;2;Trasferimenti correnti a Amministrazioni Locali;18;Trasferimenti correnti a Consorzi di enti locali;28-12-2021;
1558;1;1846;"5.961,21";"5.961,21";AMMINISTRATORI COMUNALI; ;STIPENDI MESE DI: DICEMBRE 21;16-12-2021;2;0;1;1;Spese correnti;3;Acquisto di beni e servizi;2;Acquisto di servizi;1;Organi e incarichi istituzionali dell'amministrazione;1;Organi istituzionali dell'amministrazione - Indennità;28-12-2021;
1561;1;0;"976,00";"976,00";GRUPPO TEATRALE PANTA REI;ZA6338D93C;Fatt.n. 46 del 14/12/2021 Rassegna Un teatro per i pia  piccoli - Dichiarazione esclusione split payment.;16-12-2021;305;1;351;1;Spese correnti;3;Acquisto di beni e servizi;2;Acquisto di servizi;2;"Organizzazione eventi, pubblicita` e servizi per trasferta";5;Organizzazione e partecipazione a manifestazioni e convegni;16-12-2021;
1562;1;0;"6.600,00";"6.600,00";UNA CASA PER L'UOMO - SOCIETA' COOPERATIVA SOCIALE;Z9033B3C05;Fatt.n. FE/0000431 del 10/12/2021 PROGETTO DI ACCOGLIENZA ABITATIVA;16-12-2021;559;0;381;1;Spese correnti;3;Acquisto di beni e servizi;2;Acquisto di servizi;99;Altri servizi;999;Altri servizi diversi n.a.c.;16-12-2021;
1563;1;0;"317,20";"317,20";PF SERVICE AUDIO E LUCI S.R.L.;Z8533DDAA3;Fatt.n. 8/PAS del 13/12/2021 NOLEGGIO CON INSTALLAZIONE SCHERMO;16-12-2021;305;1;388;1;Spese correnti;3;Acquisto di beni e servizi;2;Acquisto di servizi;2;"Organizzazione eventi, pubblicita` e servizi per trasferta";5;Organizzazione e partecipazione a manifestazioni e convegni;16-12-2021;
1564;1;0;"1.472,23";"1.472,23";NOIGROUP Coop. Soc. a R.L.;8551409DEF;Fatt.n. 957 del 30/11/2021 SERVIZIO BIBLIOTECA - NOVEMBRE 2021;16-12-2021;302;1;28;1;Spese correnti;3;Acquisto di beni e servizi;2;Acquisto di servizi;16;Servizi amministrativi;999;Altre spese per servizi amministrativi;16-12-2021;
1565;1;0;"85,55";"85,55";FERRONATO S.R.L.;Z7C26AD935;Fatt.n. P7 del 30/11/2021 FORNITURA MATERIALE DA FERRAMENTA;16-12-2021;313;0;277;1;Spese correnti;3;Acquisto di beni e servizi;1;Acquisto di beni;2;Altri beni di consumo;999;Altri beni e materiali di consumo n.a.c.;16-12-2021;
1566;1;0;"393,45";"393,45";VERGATI S.R.L.;ZC02D09A00;Fatt.n. 4109 del 09/12/2021 CANONE MANUTENZIONE VILLA RUBELLI -2 SEMESTRE;16-12-2021;310;1;163;1;Spese correnti;3;Acquisto di beni e servizi;2;Acquisto di servizi;9;Manutenzione ordinaria e riparazioni;9;"Manutenzione ordinaria e riparazioni di beni immobili di valore culturale, storico ed artistico";16-12-2021;
1567;1;0;"6.914,20";"6.914,20";EURORISTORAZIONE S.R.L.;883088225D;Fatt.n. 21CPA05941 del 30/11/2021 PASTI MENSA SCUOLA PRIMARIA;16-12-2021;274;1;260;1;Spese correnti;3;Acquisto di beni e servizi;2;Acquisto di servizi;15;Contratti di servizio pubblico;6;Contratti di servizio per le mense scolastiche;16-12-2021;
1568;1;0;"1.817,00";"1.817,00";OPERE PIE D'ONIGO; ;Fatt.n. 419/2 del 09/12/2021 PRESTAZIONI SOCIALI - F. M. - NOVEMBRE 2021;16-12-2021;560;0;386;1;Spese correnti;3;Acquisto di beni e servizi;2;Acquisto di servizi;15;Contratti di servizio pubblico;8;Contratti di servizio di assistenza sociale residenziale e semiresidenziale;16-12-2021;
1569;1;0;"1.781,82";"1.781,82";UNICOOPER SERVIZI S.C.R.L.;ZA530DF999;Fatt.n. 2243 del 30/11/2021 SERVIZIO DI PULIZIA ED. COMUNALI - NOVEMBRE 2021;16-12-2021;34;2;61;1;Spese correnti;3;Acquisto di beni e servizi;2;Acquisto di servizi;13;Servizi ausiliari per il funzionamento dell'ente;2;Servizi di pulizia e lavanderia;16-12-2021;
1570;1;0;"809,59";"809,59";UNICOOPER SERVIZI S.C.R.L.;ZA530DF999;Fatt.n. 2244 del 30/11/2021 SERVIZIO DI PULIZIA CENTRO POLIVALENTE - NOVEMBRE 2021;16-12-2021;561;3;62;1;Spese correnti;3;Acquisto di beni e servizi;2;Acquisto di servizi;13;Servizi ausiliari per il funzionamento dell'ente;2;Servizi di pulizia e lavanderia;16-12-2021;
1571;1;0;"2.440,00";"2.440,00";IDEA GIARDINO SNC;Z61324152A;Fatt.n. 86 del 30/11/2021 LAVORI DI MANUTENZIONE SFALCIO ERBA;16-12-2021;512;0;215;1;Spese correnti;3;Acquisto di beni e servizi;2;Acquisto di servizi;99;Altri servizi;9;Acquisto di sevizi per verde e arredo urbano;16-12-2021;
1572;1;0;"50,70";"50,70";SPRINT OFFICE S.r.l.; ;Fatt.n. H65/62 del 13/12/2021 FORNITURA LIBRI DI TESTO;16-12-2021;239;0;352;1;Spese correnti;3;Acquisto di beni e servizi;1;Acquisto di beni;1;"Giornali, riviste e pubblicazioni";2;Pubblicazioni;16-12-2021;
1573;1;0;"1.622,00";"1.622,00";CASA DI RIPOSO 'AITA'; ;Fatt.n. 730/B del 09/12/2021 PRESTAZIONI SOCIALI - L.V. NOVEMBRE 2021;16-12-2021;560;0;43;1;Spese correnti;3;Acquisto di beni e servizi;2;Acquisto di servizi;15;Contratti di servizio pubblico;8;Contratti di servizio di assistenza sociale residenziale e semiresidenziale;16-12-2021;
1574;1;0;"55,00";"55,00";SOCIETA' CONTARINA S.P.A.;Z1C312054E;Fatt.n. 0002091/VET del 07/12/2021 TARIFFA GESTIONE RIFIUTI URBANI;16-12-2021;463;0;87;1;Spese correnti;3;Acquisto di beni e servizi;2;Acquisto di servizi;15;Contratti di servizio pubblico;4;Contratti di servizio per la raccolta rifiuti;16-12-2021;
1575;1;0;"1.808,00";"1.808,00";ACCATRE S.R.L.;ZC02FEE8D9;Fatt.n. 1/211093 del 07/12/2021 CONVENZIONE PER I SERVIZI DEL TERRITORIO PER LANNO 2021.;16-12-2021;519;0;436;1;Spese correnti;3;Acquisto di beni e servizi;2;Acquisto di servizi;19;Servizi informatici e di telecomunicazioni;10;Servizi di consulenza e prestazioni professionali ICT;16-12-2021;
1576;1;0;"510,00";"510,00";ACCATRE S.R.L.;ZC02FEE8D9;Fatt.n. 1/211093 del 07/12/2021 CONVENZIONE PER I SERVIZI DEL TERRITORIO PER LANNO 2021.;16-12-2021;882;0;435;2;Spese in conto capitale;2;Investimenti fissi lordi e acquisto di terreni;3;Beni immateriali;5;Incarichi professionali per la realizzazione di investimenti;1;Incarichi professionali per la realizzazione di investimenti;16-12-2021;
1577;1;0;"5.563,08";"5.563,08";A.S. DI ANDREATTA GIUSEPPE & C. S.R.L.;Z6C326345E;Fatt.n. 942 del 30/11/2021 MANUTEZIONE IMPIANTI ELETTRICI;16-12-2021;601;0;221;1;Spese correnti;3;Acquisto di beni e servizi;2;Acquisto di servizi;15;Contratti di servizio pubblico;15;Contratti di servizio per l'illuminazione pubblica;16-12-2021;
1579;1;0;"500,42";"500,42";KUWAIT PETROLEUM ITALIA S.P.A.;Z5B2CB3D93;Fatt.n. PJ04714027 del 30/11/2021 CARBURANTE AUTO PROT. CIVILE - NOVEMBRE 2021;16-12-2021;47;0;108;1;Spese correnti;3;Acquisto di beni e servizi;1;Acquisto di beni;2;Altri beni di consumo;2;"Carburanti, combustibili e lubrificanti";16-12-2021;
1580;1;0;"1.176,78";"1.176,78";CARROZZERIA CARRON S.R.L.;ZC933FF49D;Fatt.n. 4/PA del 30/11/2021 RIPARAZIONE AUTO COMUNALE;16-12-2021;571;1;426;1;Spese correnti;3;Acquisto di beni e servizi;2;Acquisto di servizi;9;Manutenzione ordinaria e riparazioni;1;"Manutenzione ordinaria e riparazioni di mezzi di trasporto ad uso civile, di sicurezza e ordine pubblico";16-12-2021;
1581;1;0;"1.169,37";"1.169,37";VIRA S.R.L.;Z393382EAB;Fatt.n. 138 del 29/10/2021 FORNITURA RISME DI CARTA PER UFF. COMUNALI;16-12-2021;37;0;338;1;Spese correnti;3;Acquisto di beni e servizi;1;Acquisto di beni;2;Altri beni di consumo;1;"Carta, cancelleria e stampati";16-12-2021;
1582;1;0;"1.598,98";"1.598,98";A.S. DI ANDREATTA GIUSEPPE & C. S.R.L.;Z04300D84C;Fatt.n. 262 del 31/03/2021 OPERE ELETTRICHE VILLA RUBELLI;16-12-2021;745;0;323;2;Spese in conto capitale;2;Investimenti fissi lordi e acquisto di terreni;1;Beni materiali;9;Beni immobili;999;Beni immobili n.a.c.;16-12-2021;
1583;1;0;"2.400,00";"2.400,00";RINALDO BRUNO;Z2932D2687;LIQUIDAZIONE CANONE AFFITTO MAGAZZINO COMUNALE - SECONDO SEMESTRE 2021;17-12-2021;24;0;299;1;Spese correnti;3;Acquisto di beni e servizi;2;Acquisto di servizi;7;Utilizzo di beni di terzi;1;Locazione di beni immobili;17-12-2021;
1584;1;0;"395,28";"395,28";ELA SISTEMI ELETTRONICI S.R.L.;ZC833C8BBA;Fatt.n. 21/PA del 14/12/2021 INSTALLAZIONE DI TELECAMERA;17-12-2021;780;0;390;2;Spese in conto capitale;2;Investimenti fissi lordi e acquisto di terreni;1;Beni materiali;9;Beni immobili;999;Beni immobili n.a.c.;17-12-2021;
1585;1;0;"1.098,00";"1.098,00";NOIGROUP Coop. Soc. a R.L.;ZE231CE44C;Fatt.n. 956 del 30/11/2021 SERVIZIO DI SUPPORTO AI SERVIZI PER L'EDILIZIA- NOVEMBRE 2021;17-12-2021;68;0;162;1;Spese correnti;3;Acquisto di beni e servizi;2;Acquisto di servizi;16;Servizi amministrativi;999;Altre spese per servizi amministrativi;17-12-2021;
1586;1;0;"1.098,00";"1.098,00";NOIGROUP Coop. Soc. a R.L.;ZE231CE44C;Fatt.n. 857 del 31/10/2021 SUPPORTO AI SERVIZI AMMINISTRATIVI PER L'EDILIZIA- OTTOBRE 2021;17-12-2021;68;0;162;1;Spese correnti;3;Acquisto di beni e servizi;2;Acquisto di servizi;16;Servizi amministrativi;999;Altre spese per servizi amministrativi;17-12-2021;
1587;1;0;"21.533,60";"21.533,60";EDIL MUNAROLO DI MUNAROLO IVAN & C. S.N.C.;ZE9337B963;Fatt.n. 5/PA del 07/12/2021 REALIZZAZIONE PIAZZOLE ESTERNE PLESSO SCOLASTICO;17-12-2021;769;0;341;2;Spese in conto capitale;2;Investimenti fissi lordi e acquisto di terreni;1;Beni materiali;9;Beni immobili;3;Fabbricati ad uso scolastico;17-12-2021;
1589;1;0;"1.268,80";"1.268,80";ZANINOTTO LUCIO;Z3D31E3C17;Fatt.n. FATTPA 4_21 del 02/12/2021 INCARICO DI RESPONSABILE/SICUREZZA;17-12-2021;152;0;159;1;Spese correnti;3;Acquisto di beni e servizi;2;Acquisto di servizi;11;Prestazioni professionali e specialistiche;999;Altre prestazioni professionali e specialistiche n.a.c.;17-12-2021;
1590;1;0;"1.348,10";"1.348,10";SUPERMERCATI META'; ;Fatt.n. FPA 7/21 del 15/12/2021 GENERI ALIMENTARI;17-12-2021;563;0;464;1;Spese correnti;3;Acquisto di beni e servizi;1;Acquisto di beni;2;Altri beni di consumo;11;Generi alimentari;17-12-2021;
1591;1;0;"2.500,00";"2.500,00";OMESSO NOMINATIVO NEL RISPETTO DELLA NORMATIVA SULLA PROTEZIONE DATI PERSONALI; ;PROGETTO DI INTERVENTO A VALERE SULLA DGR N. 442 DEL 07/04/2020. CONTRIBUTO ECONOMICO S.o.A.;17-12-2021;567;0;453;1;Spese correnti;3;Acquisto di beni e servizi;2;Acquisto di servizi;99;Altri servizi;999;Altri servizi diversi n.a.c.;17-12-2021;
1592;1;0;"3.357,00";"3.357,00";IPA TERRE DI ASOLO E MONTEGRAPPA - ASOLO; ;IMPEGNO E LIQUIDAZIONE SALDO QUOTA ADESIONE ALLIPA TERRE DI ASOLO E MONTE GRAPPA - ANNO 2021.;17-12-2021;366;0;458;1;Spese correnti;4;Trasferimenti correnti;4;Trasferimenti correnti a Istituzioni Sociali Private;1;Trasferimenti correnti a Istituzioni Sociali Private;1;Trasferimenti correnti a Istituzioni Sociali Private;17-12-2021;
1594;1;0;"1.452,00";"1.452,00";IPA TERRE DI ASOLO E MONTEGRAPPA - ASOLO; ;IMPEGNO E LIQUIDAZIONE COFINANZIAMENTO DELLE SPESE PER LA GESTIONE DEL PROGRAMMA ATTIVIT DELLA RISERVA BIOSFERA;17-12-2021;364;0;465;1;Spese correnti;4;Trasferimenti correnti;1;Trasferimenti correnti a Amministrazioni Pubbliche;2;Trasferimenti correnti a Amministrazioni Locali;18;Trasferimenti correnti a Consorzi di enti locali;17-12-2021;
1598;1;0;"948,64";"948,64";TESORERIA PROVINCIALE DELLO STATO; ;VERSAMENTO ACCONTO I.V.A. COD. 618E.;20-12-2021;660;0;0;1;Spese correnti;10;Altre spese correnti;3;Versamenti IVA a debito;1;Versamenti IVA a debito per le gestioni commerciali;1;Versamenti IVA a debito per le gestioni commerciali;20-12-2021;
1601;1;0;"1,30";"2,60";NOMINATIVI DIVERSI DA PAGO PA; ;SOGGETTI DIVERSI-COMMISSIONI INCASSO C-BILL SPORTELLO 5 COMMISSIONI INCASSO C-BILL SPORTELLO (P. 76 -R. 1707 del 21/12/2021);28-12-2021;55;0;485;1;Spese correnti;3;Acquisto di beni e servizi;2;Acquisto di servizi;17;Servizi finanziari;1;Commissioni per servizi finanziari;28-12-2021;
1601;2;0;"1,30";"2,60";NOMINATIVI DIVERSI DA PAGO PA; ;SOGGETTI DIVERSI-COMMISSIONI INCASSO C-BILL SPORTELLO 5 COMMISSIONI INCASSO C-BILL SPORTELLO (P. 77 -R. 1708 del 21/12/2021);28-12-2021;55;0;485;1;Spese correnti;3;Acquisto di beni e servizi;2;Acquisto di servizi;17;Servizi finanziari;1;Commissioni per servizi finanziari;28-12-2021;
1602;1;0;"130,55";"130,55";CASSA DEPOSITI E PRESTITI S.P.A.; ;SOGGETTI DIVERSI-PAGAMENTO ADUE B2B            COD DISP 012112220JBX13 NOME  CDP S P A MANDATO             292844000914499 PFM RUOLO     06052 RATE AMMORTAMENTO PRESTITI MEF3B A (P. 81 -R. 1851 del 31/12/2021);31-12-2021;316;0;236;1;Spese correnti;7;Interessi passivi;5;Interessi su Mutui e altri finanziamenti a medio lungo termine;4;Interessi passivi su finanziamenti a medio lungo termine a Imprese;4;Interessi passivi a Cassa Depositi e Prestiti - Gestione Tesoro su mutui e altri finanziamenti a medio lungo termine;31-12-2021;
1603;1;0;"344,56";"344,56";CASSA DEPOSITI E PRESTITI S.P.A.; ;SOGGETTI DIVERSI-PAGAMENTO ADUE B2B            COD DISP 012112220JBX13 NOME  CDP S P A MANDATO             292844000914499 PFM RUOLO     06052 RATE AMMORTAMENTO PRESTITI MEF3B A (P. 81 -R. 1851 del 31/12/2021);31-12-2021;421;0;237;1;Spese correnti;7;Interessi passivi;5;Interessi su Mutui e altri finanziamenti a medio lungo termine;4;Interessi passivi su finanziamenti a medio lungo termine a Imprese;4;Interessi passivi a Cassa Depositi e Prestiti - Gestione Tesoro su mutui e altri finanziamenti a medio lungo termine;31-12-2021;
1604;1;0;"370,82";"370,82";CASSA DEPOSITI E PRESTITI S.P.A.; ;SOGGETTI DIVERSI-PAGAMENTO ADUE B2B            COD DISP 012112220JBX13 NOME  CDP S P A MANDATO             292844000914499 PFM RUOLO     06052 RATE AMMORTAMENTO PRESTITI MEF3B A (P. 81 -R. 1851 del 31/12/2021);31-12-2021;604;0;235;1;Spese correnti;7;Interessi passivi;5;Interessi su Mutui e altri finanziamenti a medio lungo termine;4;Interessi passivi su finanziamenti a medio lungo termine a Imprese;4;Interessi passivi a Cassa Depositi e Prestiti - Gestione Tesoro su mutui e altri finanziamenti a medio lungo termine;31-12-2021;
1606;1;0;"7.048,39";"7.048,39";CASSA DEPOSITI E PRESTITI S.P.A.; ;SOGGETTI DIVERSI-PAGAMENTO ADUE B2B            COD DISP 012112220JBX18 NOME  CDP S P A MANDATO             292844000914499 PFM RUOLO     06052 RATE AMMORTAMENTO PRESTITI SPA3B A (P. 82 -R. 1852 del 31/12/2021);31-12-2021;604;0;235;1;Spese correnti;7;Interessi passivi;5;Interessi su Mutui e altri finanziamenti a medio lungo termine;4;Interessi passivi su finanziamenti a medio lungo termine a Imprese;3;Interessi passivi a Cassa Depositi e Prestiti SPA su mutui e altri finanziamenti a medio lungo termine;31-12-2021;
1607;1;0;"1.305,10";"1.305,10";CASSA DEPOSITI E PRESTITI S.P.A.; ;SOGGETTI DIVERSI-PAGAMENTO ADUE B2B            COD DISP 012112220JBX18 NOME  CDP S P A MANDATO             292844000914499 PFM RUOLO     06052 RATE AMMORTAMENTO PRESTITI SPA3B A (P. 82 -R. 1852 del 31/12/2021);31-12-2021;421;0;237;1;Spese correnti;7;Interessi passivi;5;Interessi su Mutui e altri finanziamenti a medio lungo termine;4;Interessi passivi su finanziamenti a medio lungo termine a Imprese;3;Interessi passivi a Cassa Depositi e Prestiti SPA su mutui e altri finanziamenti a medio lungo termine;31-12-2021;
1608;1;0;"370,66";"370,66";CASSA DEPOSITI E PRESTITI S.P.A.; ;SOGGETTI DIVERSI-PAGAMENTO ADUE B2B            COD DISP 012112220JBX18 NOME  CDP S P A MANDATO             292844000914499 PFM RUOLO     06052 RATE AMMORTAMENTO PRESTITI SPA3B A (P. 82 -R. 1852 del 31/12/2021);31-12-2021;604;0;235;1;Spese correnti;7;Interessi passivi;5;Interessi su Mutui e altri finanziamenti a medio lungo termine;4;Interessi passivi su finanziamenti a medio lungo termine a Imprese;3;Interessi passivi a Cassa Depositi e Prestiti SPA su mutui e altri finanziamenti a medio lungo termine;31-12-2021;
